Workbook

Sheet 資料一覧
B1: 【居宅介護等事業所用】
A3: 1 | B3: 事前提出書類
A4: ・ 特に指定のあるもの以外は、運営指導実施予定日の属する月の 前々月末時点の状況を記入してください。
C5: 提出チェック
A6: （1） | B6: 事前提出資料（すべてこのエクセルファイルにあります） | C6: 事業者
B7: 【共通】基本情報 ※事業所番号ごとに作成すること
B8: P1 職員の配置状況
B9: P2-1 職員の勤務状況（２）勤務実績 （直近3か月分の実績）
B10: P2-2 職員の勤務状況（２）勤務実績 （直近3か月分の実績）
B11: P2-3 職員の勤務状況（２）勤務実績 （直近3か月分の実績）
B12: P3 サービス提供責任者配置数の根拠
B13: P4 ４ （一）体制要件 ア 研修の実施状況 ※特定事業所加算Ⅰ/Ⅱ/Ⅲを算定している場合のみ
B14: P5-1 利用者情報及び居宅介護等計画の作成状況（居宅介護）
B15: P5-2 利用者情報及び居宅介護等計画の作成状況（重度訪問介護）
B16: P5-3 利用者情報及び居宅介護等計画の作成状況（行動援護）
B17: P5-4 利用者情報及び居宅介護等計画の作成状況（同行援護）
B18: P6 苦情・事故の対応記録
B19: P7 業務継続計画、衛生管理、身体拘束の禁止及び虐待の防止に関する取組状況
B20: P8 主眼事項・着眼点自己点検
B21: P9 障害福祉サービス事業者（障害者・児施設、事業者）業務管理体制に係る一般検査調書
A22: （2） | B22: 運営規程、サービス利用契約書、重要事項説明書、個人情報提供に係る同意書
A23: （3） | B23: 法人・事業所の組織図、施設案内（パンフレット等）
A25: 2 | B25: 当日準備書類等
A26: ・ 次の書類はすべてのサービスに共通するものではありません。 ・ 準備すべき書類の中で該当するものがない場合は、 今回の指導のためだけに新たに作成する必要はありません。 ・ 会場配置図を参考にご用意ください。（会場内に準備してください。） ・ 指導当日に追加資料の提示を求める場合があります。 ・ 指導対象は、基本的に運営指導を行う前年度から指導日の当月までが原則となりますが、 さかのぼって資料を求める場合があります。
C27: 提出チェック
A28: （1） | B28: 指定基準に関する書類 | C28: 事業者
A29: ① | B29: 指定基準省令と解釈通知
A30: ② | B30: 報酬告示と留意事項通知
A31: （2） | B31: 人員に関する書類
A32: ① | B32: 職員勤務表
A33: ② | B33: 出勤簿又はタイムカード
A34: ③ | B34: 専任、兼任の状況がわかる書類
A35: ④ | B35: 利用者数がわかる書類（当該年度の利用者数）
A36: ⑤ | B36: 職員履歴書及び資格、経験がわかる書類（資格証など）
A37: ⑥ | B37: 就業規則
A38: ⑦ | B38: 雇用契約書及び辞令がある場合は辞令書
A39: ⑧ | B39: 給与支払明細書
A40: （3） | B40: 設備に関する書類
A41: ① | B41: 設備・備品台帳
A42: （4） | B42: 運営に関する書類
A43: ① | B43: 定款、寄付行為等
A44: ② | B44: サービスの提供の記録(実績記録票、その他ケース記録など）
A45: ③ | B45: 利用契約に関する書類
A46: ④ | B46: 支給決定障害者・保護者に関する市町への通知に係る記録
A47: ⑤ | B47: サービス等（障害児支援）利用計画書・児童発達支援計画書
A48: ⑥ | B48: 個別支援計画等原案の同意に関する記録
A49: ⑦ | B49: 受給者証写し
A50: ⑧ | B50: 利用申込み受付簿
A51: ⑨ | B51: 身体拘束等の記録（委員会の議事録及び研修の記録等）
A52: ⑩ | B52: 職員研修に関する記録
A53: ⑪ | B53: 苦情の内容等の記録
A54: ⑫ | B54: 事故の状況及び事故に際して採った処置についての記録
A55: ⑬ | B55: 虐待防止のための取組みがわかる記録・書類（委員会の議事録及び研修の記録等）
A56: （5） | B56: 自立支援給付費等及び利用者負担額に関する書類
A57: ① | B57: 介護給付費・訓練等給付費等請求書
A58: ② | B58: 介護給付費・訓練等給付費等明細書
A59: ③ | B59: 特例介護給付費・訓練等給付費等請求書
A60: ④ | B60: 特例介護給付費・訓練等給付費等明細書
A61: ⑤ | B61: サービス実績記録票
A62: ⑥ | B62: 各種加算関係書類
A63: ⑦ | B63: 利用者負担額の請求書
A64: ⑧ | B64: 利用者負担額の領収書控
A65: ⑨ | B65: 法定代理受領の通知の写し
A66: ⑩ | B66: サービス提供証明書
A67: ⑪ | B67: 金銭の支払を求める同意に関する記録
A68: ⑫ | B68: 支払を求める金銭の算定に関する積算の根拠

Sheet 【共通】
K1: 資料作成者
B3: 指定障害福祉サービス事業者・障害者支援施設・一般相談・特定相談支援事業者指導資料
J4: （令和 | L4: =IF(L9="","",IF(N9=1,L9-1,L9)) -> 8 | M4: 年 | N4: =IF(N9="","",MONTH(EOMONTH(DATE(SUM(2018+L9),N9,P9),-1))) -> 6 | O4: 月 | P4: =IF(N4="","",20) -> 20 | Q4: 日現在）
B5: 事業所・施設名 | H5: 事業所番号 | I5: 2 | J5: 2
B6: 事業所等所在地 | C6: 〒 － | M6: TEL | O6: - | Q6: -
C7: 浜松市 | M7: FAX | O7: - | Q7: -
B8: 法人名 | H8: 法人代表者
B9: 管理者 | H9: 運営指導年月日 | J9: 令和 | L9: 8 | M9: 年 | N9: 7 | O9: 月 | P9: 1 | Q9: 日
B10: 実施サービス種類 （施設サービス含む） とその利用定員、 利用者の数 | C10: サービス種類 | F10: 契約者の数 | H10: 左記サービスの 当初指定年月日
G11: 人 | M11: 年 | O11: 月 | P11: 1 | Q11: 日 | U11: 平成
G12: 人 | M12: 年 | O12: 月 | P12: 1 | Q12: 日 | U12: 令和
G13: 人 | M13: 年 | O13: 月 | P13: 1 | Q13: 日
G14: 人 | M14: 年 | O14: 月 | P14: 1 | Q14: 日
G15: 人 | M15: 年 | O15: 月 | P15: 1 | Q15: 日
G16: 人 | M16: 年 | O16: 月 | P16: 1 | Q16: 日
B17: 併設事業所 | H17: バックアップ 施設等
B18: ※事業所番号ごとに作成すること。
C19: 部分のみ入力可能。 | H19: ※以降、全シート共通
C21: 部分はプルダウンメニューから該当するものを選択すること。
A24: ●前回指導結果通知に基づく指導事項（助言指導を含む。）の改善状況 | I24: （前回指導実施日 | J24: 令和 | M24: 年 | O24: 月 | Q24: 日）
A25: 指導事項 | E25: 改善措置状況 | I25: 未改善の理由
A33: ●市への質疑事項
C112: 居宅介護
C113: 重度訪問介護
C114: 同行援護
C115: 行動援護
C116: 療養介護
C117: 生活介護
C118: 短期入所（空床型）
C119: 短期入所（併設型）
C120: 短期入所（単独型）
C121: 自立訓練（機能訓練）
C122: 自立訓練（生活訓練）
C123: 宿泊型自立訓練
C124: 就労移行支援
C125: 就労継続支援Ａ型
C126: 就労継続支援Ｂ型
C127: 就労定着支援
C128: 自立生活援助
C129: 共同生活援助
C130: 施設入所支援
C131: 施設入所支援（経過的）
C132: 地域相談支援（地域移行支援）
C133: 地域相談支援（地域定着支援）
C134: 計画相談支援

Sheet P1
B1: １ 職員の配置状況（既存資料の添付可） | E1: =【共通】!J4&【共通】!L4&【共通】!M4&【共通】!N4&【共通】!O4&【共通】!P4&【共通】!Q4 -> （令和8年6月20日現在） | N1: =" １ / "&Q1 -> １ / 1 | Q1: =IF(C76<>"",4,IF(C53<>"",3,IF(C30<>"",2,1))) -> 1
C2: 職 種 | D2: 氏 名 | E2: 年齢 | F2: 雇用 形態 | G2: 勤続年数 | H2: 勤務形態 | I2: 兼務先 | J2: 資格 | K2: 居宅 介護 | L2: 重度 訪問 | M2: 行動 援護 | N2: 同行 援護 | Q2: 常勤／専従
B3: 例 | C3: 管理者兼サービス提供責任者 | D3: ○○ ○○ | E3: 50 | F3: 正 | G3: 5年以上 10年未満 | H3: 常勤／兼務 | I3: 同事業所 | J3: 介護福祉士、同行援護従事者養成研修（一般・応用） | K3: サ | L3: サ | M3: × | N3: サ | Q3: 常勤／兼務
B4: 例 | C4: サービス提供責任者 | D4: □□ □□ | E4: 45 | F4: 正 | G4: 10年以上 | H4: 常勤／専従 | I4: - | J4: 実務者研修、ヘルパー２級 | K4: サ | L4: サ | M4: × | N4: × | Q4: 非常勤／専従
B5: 例 | C5: ヘルパー | D5: △△ △△ | E5: 30 | F5: 登 | G5: 1年以上 3年未満 | H5: 非常勤／兼務 | I5: 他法人 | J5: 居宅介護職員初任者研修、同行援護従事者養成研修（一般） | K5: 従 | L5: × | M5: × | N5: 従 | Q5: 非常勤／兼務
B6: 1 | Q6: 同事業所
B7: =B6+1 -> 2 | Q7: 同法人 他事業所
B8: =B7+1 -> 3 | Q8: 他法人
B9: 4 | Q9: -
B10: =B9+1 -> 5 | Q10: 1年未満
B11: 6 | Q11: 1年以上 3年未満
B12: 7 | Q12: 3年以上 5年未満
B13: 8 | Q13: 5年以上
B14: 9
B15: 10
B16: 11
B17: 12
B18: 13
B19: 14
B20: 15
B21: 注 | C21: １ 登録ヘルパーも含め、当該事業所の職員として勤務するすべての職員について記載すること。
C22: ２ 雇用形態は、正規職員は「正」、非正規雇用職員は「非」、登録ヘルパーは「登」を選択すること。
C23: ３ 勤務年数は、当該事業所における勤務年数を選択すること。
C24: ４ 勤務形態は、「常勤／専従」、「常勤／兼務」、「非常勤／専従」、「非常勤／兼務」のいずれかを選択すること。
C25: ５ 兼務先は、「同事業所内」、「同法人他事業所」、「他法人」から選択すること。
C26: ６ 資格は、介護福祉士、実務者研修、看護師、各種修了した研修名等を記載すること。
C27: ７ K～Ｎ列は各サービスの従事状況を記入することとし、サービス提供責任者は「サ」、従業者は「従」、従事しない事業は「×」を選択すること。
B28: １ 職員の配置状況（既存資料の添付可） | E28: =$E$1 -> （令和8年6月20日現在） | N28: =" 2 / "&Q1 -> 2 / 1
C29: 職 種 | D29: 氏 名 | E29: 年齢 | F29: 雇用 形態 | G29: 勤続年数 | H29: 勤務形態 | I29: 兼務先 | J29: 資格 | K29: 居宅 介護 | L29: 重度 訪問 | M29: 行動 援護 | N29: 同行 援護
B30: =B20+1 -> 16
B31: =B30+1 -> 17
B32: =B31+1 -> 18
B33: 19
B34: 20
B35: 21
B36: 22
B37: 23
B38: 24
B39: 25
B40: 26
B41: 27
B42: 28
B43: 29
B44: 30
B45: 31
B46: 32
B47: 33
B48: 34
B49: 35
B50: 36
B51: １ 職員の配置状況（既存資料の添付可） | E51: =$E$1 -> （令和8年6月20日現在） | N51: =" 3 / "&Q1 -> 3 / 1
C52: 職 種 | D52: 氏 名 | E52: 年齢 | F52: 雇用 形態 | G52: 勤続年数 | H52: 勤務形態 | I52: 兼務先 | J52: 資格 | K52: 居宅 介護 | L52: 重度 訪問 | M52: 行動 援護 | N52: 同行 援護
B53: =B50+1 -> 37
B54: =B53+1 -> 38
B55: =B54+1 -> 39
B56: 40
B57: 41
B58: 42
B59: 43
B60: 44
B61: 45
B62: 46
B63: 47
B64: 48
B65: 49
B66: 50
B67: 51
B68: 52
B69: 53
B70: 54
B71: 55
B72: 56
B73: 57
B74: １ 職員の配置状況（既存資料の添付可） | E74: =$E$1 -> （令和8年6月20日現在） | N74: =" 4 / "&Q1 -> 4 / 1
C75: 職 種 | D75: 氏 名 | E75: 年齢 | F75: 雇用 形態 | G75: 勤続年数 | H75: 勤務形態 | I75: 兼務先 | J75: 資格 | K75: 居宅 介護 | L75: 重度 訪問 | M75: 行動 援護 | N75: 同行 援護
B76: =B73+1 -> 58
B77: =B76+1 -> 59
B78: =B77+1 -> 60
B79: 61
B80: 62
B81: 63
B82: 64
B83: 65
B84: 66
B85: 67
B86: 68
B87: 69
B88: 70
B89: 71
B90: 72
B91: 73
B92: 74
B93: 75
B94: 76
B95: 77
B96: 78

Sheet P2-1
B3: ２ 職員の勤務実績（既存資料の添付可） | N3: =YEAR(EOMONTH(DATE(SUM(2018+【共通】!L9),【共通】!N9,【共通】!P9),-2)) -> 2026 | S3: （ | T3: =IFERROR("令和 "&VLOOKUP(N3,BL5:BM12,2,FALSE),"") -> 令和 8 | V3: 年 | W3: =MONTH(EOMONTH(DATE(2023,【共通】!N9,【共通】!P9),-2)) -> 5 | X3: 月分実績 | Z3: ） | AA3: 当該事業所の常勤の職員が当該月に勤務すべき時間数 | AN3: 時間／日 | AR3: 時間／週 | AV3: 時間／月 | AX3: ="1 / "&COUNTA(C$7,C$49,#REF!,C$135,C$179) -> 1 / 2
C5: 職 種 | I5: 氏 名 | N5: 勤務 形態 | Q5: =DATE($N$3,$W$3,1) -> 2026-05-01 | R5: =Q5+1 -> 2026-05-02 | S5: =R5+1 -> 2026-05-03 | T5: =S5+1 -> 2026-05-04 | U5: 2026-05-05 | V5: 2026-05-06 | W5: 2026-05-07 | X5: 2026-05-08 | Y5: 2026-05-09 | Z5: 2026-05-10 | AA5: 2026-05-11 | AB5: 2026-05-12 | AC5: 2026-05-13 | AD5: 2026-05-14 | AE5: 2026-05-15 | AF5: 2026-05-16 | AG5: 2026-05-17 | AH5: 2026-05-18 | AI5: 2026-05-19 | AJ5: 2026-05-20 | AK5: 2026-05-21 | AL5: 2026-05-22 | AM5: 2026-05-23 | AN5: 2026-05-24 | AO5: 2026-05-25 | AP5: 2026-05-26 | AQ5: 2026-05-27 | AR5: =AQ5+1 -> 2026-05-28 | AS5: =IF(DAY(DATE($N$3,$W$3,29))=29,AR5+1,"") -> 2026-05-29 | AT5: =IF(DAY(DATE($N$3,$W$3,30))=30,AS5+1,"") -> 2026-05-30 | AU5: =IF(DAY(DATE($N$3,$W$3,31))=31,AT5+1,"") -> 2026-05-31 | AV5: 勤務日数 | AX5: 常勤換算 | BL5: 2023 | BM5: 5
Q6: =VLOOKUP(WEEKDAY(Q5,2),$BA$7:$BB$14,2,FALSE) -> 金 | R6: 土 | S6: 日 | T6: 月 | U6: 火 | V6: 水 | W6: 木 | X6: 金 | Y6: 土 | Z6: 日 | AA6: 月 | AB6: 火 | AC6: 水 | AD6: 木 | AE6: 金 | AF6: 土 | AG6: 日 | AH6: 月 | AI6: 火 | AJ6: 水 | AK6: 木 | AL6: 金 | AM6: 土 | AN6: 日 | AO6: 月 | AP6: 火 | AQ6: 水 | AR6: 木 | AS6: =IF(AS5="","",VLOOKUP(WEEKDAY(AS5,2),$BA$7:$BB$14,2,FALSE)) -> 金 | AT6: =IF(AT5="","",VLOOKUP(WEEKDAY(AT5,2),$BA$7:$BB$14,2,FALSE)) -> 土 | AU6: =IF(AU5="","",VLOOKUP(WEEKDAY(AU5,2),$BA$7:$BB$14,2,FALSE)) -> 日 | AV6: 勤務時間 | BL6: =BL5+1 -> 2024 | BM6: =BM5+1 -> 6
B7: 例 | C7: 管理者 | I7: ○○ ○○ | N7: 常勤 兼務 | Q7: 7.75 | R7: 7.75 | S7: 7.75 | V7: 7.75 | W7: 7.75 | X7: 7.75 | Y7: 7.75 | Z7: 7.75 | AC7: 7.75 | AD7: 7.75 | AE7: 7.75 | AF7: 7.75 | AG7: 7.75 | AJ7: 7.75 | AK7: 7.75 | AL7: 7.75 | AM7: 7.75 | AN7: 7.75 | AQ7: 7.75 | AR7: 7.75 | AS7: 7.75 | AT7: 7.75 | AV7: =COUNTA(Q7:AU7) -> 22 | AW7: =AV8 -> 170.5 | AX7: 1.1 | BA7: 1 | BB7: 月 | BC7: 管理者 | BG7: 常勤 専従 | BH7: 常勤 兼務 | BI7: 非常勤 専従 | BJ7: 非常勤 兼務 | BL7: =BL6+1 -> 2025 | BM7: 7
AV8: =SUM(Q7:AU8) -> 170.5 | BA8: 2 | BB8: 火 | BC8: サービス提供責任者 | BL8: 2026 | BM8: 8
B9: 例 | C9: サービス提供責任者 | I9: ×× ×× | N9: 常勤 専従 | Q9: 6.75 | R9: 6.75 | S9: 6.75 | V9: 6.75 | W9: 6.75 | X9: 6.75 | Y9: 6.75 | Z9: 6.75 | AC9: 6.75 | AD9: 6.75 | AE9: 6.75 | AF9: 6.75 | AG9: 6.75 | AJ9: 6.75 | AK9: 6.75 | AL9: 6.75 | AM9: 6.75 | AN9: 6.75 | AQ9: 6.75 | AR9: 6.75 | AS9: 6.75 | AT9: 6.75 | AV9: =COUNTA(Q9:AU9) -> 22 | AW9: =AV10 -> 148.5 | AX9: 0.9 | BA9: 3 | BB9: 水 | BC9: ヘルパー | BL9: 2027 | BM9: 9
AV10: =SUM(Q9:AU10) -> 148.5 | BA10: 4 | BB10: 木 | BC10: 登録ヘルパー | BL10: 2028 | BM10: 10
B11: 例 | C11: ヘルパー | I11: △△ △△ | N11: 非常勤 兼務 | R11: 2.75 | S11: 2.75 | V11: 1.5 | W11: 1.5 | Y11: 2.75 | Z11: 2.75 | AC11: 1.5 | AD11: 1.5 | AF11: 2.75 | AG11: 2.75 | AJ11: 1.5 | AK11: 1.5 | AM11: 2.75 | AN11: 2.75 | AQ11: 1.5 | AR11: 1.5 | AT11: 2.75 | AV11: =COUNTA(Q11:AU11) -> 17 | AW11: =AV12 -> 36.75 | AX11: 0.2 | BA11: 5 | BB11: 金 | BL11: 2029 | BM11: 11
AV12: =SUM(Q11:AU12) -> 36.75 | BA12: 6 | BB12: 土 | BL12: 2030 | BM12: 12
B13: =ROW(B1) -> 1 | AV13: =COUNTA(Q13:AU13) -> 0 | AW13: =AV14 -> 0 | AX13: =IFERROR(ROUNDDOWN(AV14/$AT$3,1),"") ->  | BA13: 7 | BB13: 日
AV14: =SUM(Q13:AU13) -> 0
B15: =B13+1 -> 2 | AV15: =COUNTA(Q15:AU15) -> 0 | AW15: =AV16 -> 0 | AX15: =IFERROR(ROUNDDOWN(AV16/$AT$3,1),"") -> 
AV16: =SUM(Q15:AU15) -> 0
B17: =B15+1 -> 3 | AV17: =COUNTA(Q17:AU17) -> 0 | AW17: =AV18 -> 0 | AX17: =IFERROR(ROUNDDOWN(AV18/$AT$3,1),"") -> 
AV18: =SUM(Q17:AU17) -> 0
B19: =B17+1 -> 4 | AV19: =COUNTA(Q19:AU19) -> 0 | AW19: =AV20 -> 0 | AX19: =IFERROR(ROUNDDOWN(AV20/$AT$3,1),"") -> 
AV20: =SUM(Q19:AU19) -> 0
B21: =B19+1 -> 5 | AV21: =COUNTA(Q21:AU21) -> 0 | AW21: =AV22 -> 0 | AX21: =IFERROR(ROUNDDOWN(AV22/$AT$3,1),"") -> 
AV22: =SUM(Q21:AU21) -> 0
B23: =B21+1 -> 6 | AV23: 0 | AW23: =AV24 -> 0 | AX23: =IFERROR(ROUNDDOWN(AV24/$AT$3,1),"") -> 
AV24: 0
B25: =B23+1 -> 7 | AV25: 0 | AW25: =AV26 -> 0 | AX25: =IFERROR(ROUNDDOWN(AV26/$AT$3,1),"") -> 
AV26: 0
B27: =B25+1 -> 8 | AV27: 0 | AW27: =AV28 -> 0 | AX27: =IFERROR(ROUNDDOWN(AV28/$AT$3,1),"") -> 
AV28: 0
B29: =B27+1 -> 9 | AV29: 0 | AW29: =AV30 -> 0 | AX29: =IFERROR(ROUNDDOWN(AV30/$AT$3,1),"") -> 
AV30: 0
B31: =B29+1 -> 10 | AV31: 0 | AW31: =AV32 -> 0 | AX31: =IFERROR(ROUNDDOWN(AV32/$AT$3,1),"") -> 
AV32: 0
B33: =B31+1 -> 11 | AV33: 0 | AW33: =AV34 -> 0 | AX33: =IFERROR(ROUNDDOWN(AV34/$AT$3,1),"") -> 
AV34: 0
B35: =B33+1 -> 12 | AV35: 0 | AW35: =AV36 -> 0 | AX35: =IFERROR(ROUNDDOWN(AV36/$AT$3,1),"") -> 
AV36: 0
B37: =B35+1 -> 13 | AV37: 0 | AW37: =AV38 -> 0 | AX37: =IFERROR(ROUNDDOWN(AV38/$AT$3,1),"") -> 
AV38: 0
B39: =B37+1 -> 14 | AV39: 0 | AW39: =AV40 -> 0 | AX39: =IFERROR(ROUNDDOWN(AV40/$AT$3,1),"") -> 
AV40: 0
B41: =B39+1 -> 15 | AV41: 0 | AW41: =AV42 -> 0 | AX41: =IFERROR(ROUNDDOWN(AV42/$AT$3,1),"") -> 
AV42: 0
B43: =B41+1 -> 16 | AV43: 0 | AW43: =AV44 -> 0 | AX43: =IFERROR(ROUNDDOWN(AV44/$AT$3,1),"") -> 
AV44: 0
B45: =B43+1 -> 17 | AV45: 0 | AW45: =AV46 -> 0 | AX45: =IFERROR(ROUNDDOWN(AV46/$AT$3,1),"") -> 
AV46: 0
B47: =B45+1 -> 18 | AV47: 0 | AW47: =AV48 -> 0 | AX47: =IFERROR(ROUNDDOWN(AV48/$AT$3,1),"") -> 
AV48: 0
B49: =B47+1 -> 19 | AV49: 0 | AW49: =AV50 -> 0 | AX49: =IFERROR(ROUNDDOWN(AV50/$AT$3,1),"") -> 
AV50: 0
B51: =B49+1 -> 20 | AV51: 0 | AW51: =AV52 -> 0 | AX51: =IFERROR(ROUNDDOWN(AV52/$AT$3,1),"") -> 
AV52: 0
B53: 21 | AV53: 0 | AW53: =AV54 -> 0 | AX53: =IFERROR(ROUNDDOWN(AV54/$AT$3,1),"") -> 
AV54: 0
B55: 22 | AV55: 0 | AW55: =AV56 -> 0 | AX55: =IFERROR(ROUNDDOWN(AV56/$AT$3,1),"") -> 
AV56: 0
B57: 23 | AV57: 0 | AW57: =AV58 -> 0 | AX57: =IFERROR(ROUNDDOWN(AV58/$AT$3,1),"") -> 
AV58: 0
B59: 24 | AV59: 0 | AW59: =AV60 -> 0 | AX59: =IFERROR(ROUNDDOWN(AV60/$AT$3,1),"") -> 
AV60: 0
B61: 25 | AV61: 0 | AW61: =AV62 -> 0 | AX61: =IFERROR(ROUNDDOWN(AV62/$AT$3,1),"") -> 
AV62: 0
B63: 26 | AV63: 0 | AW63: =AV64 -> 0 | AX63: =IFERROR(ROUNDDOWN(AV64/$AT$3,1),"") -> 
AV64: 0
B65: 27 | AV65: 0 | AW65: =AV66 -> 0 | AX65: =IFERROR(ROUNDDOWN(AV66/$AT$3,1),"") -> 
AV66: 0
B67: 28 | AV67: 0 | AW67: =AV68 -> 0 | AX67: =IFERROR(ROUNDDOWN(AV68/$AT$3,1),"") -> 
AV68: 0
B69: 29 | AV69: 0 | AW69: =AV70 -> 0 | AX69: =IFERROR(ROUNDDOWN(AV70/$AT$3,1),"") -> 
AV70: 0
B71: 30 | AV71: 0 | AW71: =AV72 -> 0 | AX71: =IFERROR(ROUNDDOWN(AV72/$AT$3,1),"") -> 
AV72: 0
B73: 31 | AV73: 0 | AW73: =AV74 -> 0 | AX73: =IFERROR(ROUNDDOWN(AV74/$AT$3,1),"") -> 
AV74: 0
B75: 32 | AV75: 0 | AW75: =AV76 -> 0 | AX75: =IFERROR(ROUNDDOWN(AV76/$AT$3,1),"") -> 
AV76: 0
B77: 33 | AV77: 0 | AW77: =AV78 -> 0 | AX77: =IFERROR(ROUNDDOWN(AV78/$AT$3,1),"") -> 
AV78: 0
B79: 34 | AV79: 0 | AW79: =AV80 -> 0 | AX79: =IFERROR(ROUNDDOWN(AV80/$AT$3,1),"") -> 
AV80: 0
B81: 35 | AV81: 0 | AW81: =AV82 -> 0 | AX81: =IFERROR(ROUNDDOWN(AV82/$AT$3,1),"") -> 
AV82: 0
B83: 36 | AV83: 0 | AW83: =AV84 -> 0 | AX83: =IFERROR(ROUNDDOWN(AV84/$AT$3,1),"") -> 
AV84: 0
B85: 37 | AV85: =COUNTA(Q85:AU85) -> 0 | AW85: =AV86 -> 0 | AX85: =IFERROR(ROUNDDOWN(AV86/$AT$3,1),"") -> 
AV86: =SUM(Q85:AU85) -> 0
B87: =B85+1 -> 38 | AV87: 0 | AW87: =AV88 -> 0 | AX87: =IFERROR(ROUNDDOWN(AV88/$AT$3,1),"") -> 
AV88: 0
B89: 39 | AV89: 0 | AW89: =AV90 -> 0 | AX89: =IFERROR(ROUNDDOWN(AV90/$AT$3,1),"") -> 
AV90: 0
B91: 40 | AV91: 0 | AW91: =AV92 -> 0 | AX91: =IFERROR(ROUNDDOWN(AV92/$AT$3,1),"") -> 
AV92: 0
B93: 41 | AV93: 0 | AW93: =AV94 -> 0 | AX93: =IFERROR(ROUNDDOWN(AV94/$AT$3,1),"") -> 
AV94: 0
B95: =B93+1 -> 42 | AV95: 0 | AW95: =AV96 -> 0 | AX95: =IFERROR(ROUNDDOWN(AV96/$AT$3,1),"") -> 
AV96: 0
B97: 43 | AV97: 0 | AW97: =AV98 -> 0 | AX97: =IFERROR(ROUNDDOWN(AV98/$AT$3,1),"") -> 
AV98: 0
B99: 44 | AV99: 0 | AW99: =AV100 -> 0 | AX99: =IFERROR(ROUNDDOWN(AV100/$AT$3,1),"") -> 
AV100: 0
B101: 45 | AV101: 0 | AW101: =AV102 -> 0 | AX101: =IFERROR(ROUNDDOWN(AV102/$AT$3,1),"") -> 
AV102: 0
B103: 46 | AV103: 0 | AW103: =AV104 -> 0 | AX103: =IFERROR(ROUNDDOWN(AV104/$AT$3,1),"") -> 
AV104: 0
B105: 47 | AV105: 0 | AW105: =AV106 -> 0 | AX105: =IFERROR(ROUNDDOWN(AV106/$AT$3,1),"") -> 
AV106: 0
B107: 48 | AV107: 0 | AW107: =AV108 -> 0 | AX107: =IFERROR(ROUNDDOWN(AV108/$AT$3,1),"") -> 
AV108: 0
B109: 49 | AV109: 0 | AW109: =AV110 -> 0 | AX109: =IFERROR(ROUNDDOWN(AV110/$AT$3,1),"") -> 
AV110: 0
B111: 50 | AV111: 0 | AW111: =AV112 -> 0 | AX111: =IFERROR(ROUNDDOWN(AV112/$AT$3,1),"") -> 
AV112: 0
B113: 51 | AV113: 0 | AW113: =AV114 -> 0 | AX113: =IFERROR(ROUNDDOWN(AV114/$AT$3,1),"") -> 
AV114: 0
B115: 52 | AV115: 0 | AW115: =AV116 -> 0 | AX115: =IFERROR(ROUNDDOWN(AV116/$AT$3,1),"") -> 
AV116: 0
B117: 53 | AV117: 0 | AW117: =AV118 -> 0 | AX117: =IFERROR(ROUNDDOWN(AV118/$AT$3,1),"") -> 
AV118: 0
B119: 54 | AV119: 0 | AW119: =AV120 -> 0 | AX119: =IFERROR(ROUNDDOWN(AV120/$AT$3,1),"") -> 
AV120: 0
B121: 55 | AV121: 0 | AW121: =AV122 -> 0 | AX121: =IFERROR(ROUNDDOWN(AV122/$AT$3,1),"") -> 
AV122: 0
B123: 56 | AV123: =COUNTA(Q123:AU123) -> 0 | AW123: =AV124 -> 0 | AX123: =IFERROR(ROUNDDOWN(AV124/$AT$3,1),"") -> 
AV124: =SUM(Q123:AU123) -> 0
B125: 57 | AV125: 0 | AW125: =AV126 -> 0 | AX125: =IFERROR(ROUNDDOWN(AV126/$AT$3,1),"") -> 
AV126: 0
B127: 58 | AV127: 0 | AW127: =AV128 -> 0 | AX127: =IFERROR(ROUNDDOWN(AV128/$AT$3,1),"") -> 
AV128: 0
B129: 59 | AV129: 0 | AW129: =AV130 -> 0 | AX129: =IFERROR(ROUNDDOWN(AV130/$AT$3,1),"") -> 
AV130: 0
B131: 60 | AV131: 0 | AW131: =AV132 -> 0 | AX131: =IFERROR(ROUNDDOWN(AV132/$AT$3,1),"") -> 
AV132: 0
B133: 61 | AV133: 0 | AW133: =AV134 -> 0 | AX133: =IFERROR(ROUNDDOWN(AV134/$AT$3,1),"") -> 
AV134: 0
B135: =B133+1 -> 62 | AV135: 0 | AW135: =AV136 -> 0 | AX135: =IFERROR(ROUNDDOWN(AV136/$AT$3,1),"") -> 
AV136: 0
B137: =B135+1 -> 63 | AV137: 0 | AW137: =AV138 -> 0 | AX137: =IFERROR(ROUNDDOWN(AV138/$AT$3,1),"") -> 
AV138: 0
B139: 64 | AV139: 0 | AW139: =AV140 -> 0 | AX139: =IFERROR(ROUNDDOWN(AV140/$AT$3,1),"") -> 
AV140: 0
B141: 65 | AV141: 0 | AW141: =AV142 -> 0 | AX141: =IFERROR(ROUNDDOWN(AV142/$AT$3,1),"") -> 
AV142: 0
B143: 66 | AV143: 0 | AW143: =AV144 -> 0 | AX143: =IFERROR(ROUNDDOWN(AV144/$AT$3,1),"") -> 
AV144: 0
B145: 67 | AV145: 0 | AW145: =AV146 -> 0 | AX145: =IFERROR(ROUNDDOWN(AV146/$AT$3,1),"") -> 
AV146: 0
B147: 68 | AV147: 0 | AW147: =AV148 -> 0 | AX147: =IFERROR(ROUNDDOWN(AV148/$AT$3,1),"") -> 
AV148: 0
B149: 69 | AV149: 0 | AW149: =AV150 -> 0 | AX149: =IFERROR(ROUNDDOWN(AV150/$AT$3,1),"") -> 
AV150: 0
B151: 70 | AV151: 0 | AW151: =AV152 -> 0 | AX151: =IFERROR(ROUNDDOWN(AV152/$AT$3,1),"") -> 
AV152: 0
B153: 71 | AV153: 0 | AW153: =AV154 -> 0 | AX153: =IFERROR(ROUNDDOWN(AV154/$AT$3,1),"") -> 
AV154: 0
B155: 72 | AV155: 0 | AW155: =AV156 -> 0 | AX155: =IFERROR(ROUNDDOWN(AV156/$AT$3,1),"") -> 
AV156: 0
B157: 73 | AV157: 0 | AW157: =AV158 -> 0 | AX157: =IFERROR(ROUNDDOWN(AV158/$AT$3,1),"") -> 
AV158: 0
B159: 74 | AV159: 0 | AW159: =AV160 -> 0 | AX159: =IFERROR(ROUNDDOWN(AV160/$AT$3,1),"") -> 
AV160: 0
B161: 75 | AV161: 0 | AW161: =AV162 -> 0 | AX161: =IFERROR(ROUNDDOWN(AV162/$AT$3,1),"") -> 
AV162: 0
B163: 76 | AV163: 0 | AW163: =AV164 -> 0 | AX163: =IFERROR(ROUNDDOWN(AV164/$AT$3,1),"") -> 
AV164: 0
B165: 77 | AV165: 0 | AW165: =AV166 -> 0 | AX165: =IFERROR(ROUNDDOWN(AV166/$AT$3,1),"") -> 
AV166: 0
B167: 78 | AV167: 0 | AW167: =AV168 -> 0 | AX167: =IFERROR(ROUNDDOWN(AV168/$AT$3,1),"") -> 
AV168: 0
B169: 79 | AV169: 0 | AW169: =AV170 -> 0 | AX169: =IFERROR(ROUNDDOWN(AV170/$AT$3,1),"") -> 
AV170: 0
B171: 80 | AV171: 0 | AW171: =AV172 -> 0 | AX171: =IFERROR(ROUNDDOWN(AV172/$AT$3,1),"") -> 
AV172: 0
B173: 81 | AV173: 0 | AW173: =AV174 -> 0 | AX173: =IFERROR(ROUNDDOWN(AV174/$AT$3,1),"") -> 
AV174: 0
B175: 82 | AV175: 0 | AW175: =AV176 -> 0 | AX175: =IFERROR(ROUNDDOWN(AV176/$AT$3,1),"") -> 
AV176: 0
B177: 83 | AV177: 0 | AW177: =AV178 -> 0 | AX177: =IFERROR(ROUNDDOWN(AV178/$AT$3,1),"") -> 
AV178: 0
B179: =B177+1 -> 84 | AV179: 0 | AW179: =AV180 -> 0 | AX179: =IFERROR(ROUNDDOWN(AV180/$AT$3,1),"") -> 
AV180: 0
B181: =B179+1 -> 85 | AV181: 0 | AW181: =AV182 -> 0 | AX181: =IFERROR(ROUNDDOWN(AV182/$AT$3,1),"") -> 
AV182: 0
B183: 86 | AV183: 0 | AW183: =AV184 -> 0 | AX183: =IFERROR(ROUNDDOWN(AV184/$AT$3,1),"") -> 
AV184: 0
B185: 87 | AV185: 0 | AW185: =AV186 -> 0 | AX185: =IFERROR(ROUNDDOWN(AV186/$AT$3,1),"") -> 
AV186: 0
B187: 88 | AV187: =COUNTA(Q187:AU187) -> 0 | AW187: =AV188 -> 0 | AX187: =IFERROR(ROUNDDOWN(AV188/$AT$3,1),"") -> 
AV188: =SUM(Q187:AU187) -> 0
B189: 89 | AV189: 0 | AW189: =AV190 -> 0 | AX189: =IFERROR(ROUNDDOWN(AV190/$AT$3,1),"") -> 
AV190: 0
B191: 90 | AV191: 0 | AW191: =AV192 -> 0 | AX191: =IFERROR(ROUNDDOWN(AV192/$AT$3,1),"") -> 
AV192: 0
B193: 91 | AV193: 0 | AW193: =AV194 -> 0 | AX193: =IFERROR(ROUNDDOWN(AV194/$AT$3,1),"") -> 
AV194: 0
B195: 92 | AV195: 0 | AW195: =AV196 -> 0 | AX195: =IFERROR(ROUNDDOWN(AV196/$AT$3,1),"") -> 
AV196: 0
B197: 93 | AV197: 0 | AW197: =AV198 -> 0 | AX197: =IFERROR(ROUNDDOWN(AV198/$AT$3,1),"") -> 
AV198: 0
B199: 94 | AV199: 0 | AW199: =AV200 -> 0 | AX199: =IFERROR(ROUNDDOWN(AV200/$AT$3,1),"") -> 
AV200: 0
B201: 95 | AV201: 0 | AW201: =AV202 -> 0 | AX201: =IFERROR(ROUNDDOWN(AV202/$AT$3,1),"") -> 
AV202: 0
B203: 96 | AV203: 0 | AW203: =AV204 -> 0 | AX203: =IFERROR(ROUNDDOWN(AV204/$AT$3,1),"") -> 
... 19 more rows

Sheet P2-2
B3: ２ 職員の勤務実績（既存資料の添付可） | N3: =YEAR(EOMONTH(DATE(SUM(2018+【共通】!L9),【共通】!N9,【共通】!P9),-2)) -> 2026 | S3: （ | T3: =IFERROR("令和 "&VLOOKUP(N3,BL5:BM12,2,FALSE),"") -> 令和 8 | V3: 年 | W3: =MONTH(EOMONTH(DATE(2023,【共通】!N9,【共通】!P9),-3)) -> 4 | X3: 月分実績 | Z3: ） | AA3: 当該事業所の常勤の職員が当該月に勤務すべき時間数 | AN3: 時間／日 | AR3: 時間／週 | AV3: 時間／月 | AX3: ="1 / "&COUNTA(C$7,C$49,#REF!,C$135,C$179) -> 1 / 2
C5: 職 種 | I5: 氏 名 | N5: 勤務 形態 | Q5: =DATE($N$3,$W$3,1) -> 2026-04-01 | R5: =Q5+1 -> 2026-04-02 | S5: =R5+1 -> 2026-04-03 | T5: =S5+1 -> 2026-04-04 | U5: 2026-04-05 | V5: 2026-04-06 | W5: 2026-04-07 | X5: 2026-04-08 | Y5: 2026-04-09 | Z5: 2026-04-10 | AA5: 2026-04-11 | AB5: 2026-04-12 | AC5: 2026-04-13 | AD5: 2026-04-14 | AE5: 2026-04-15 | AF5: 2026-04-16 | AG5: 2026-04-17 | AH5: 2026-04-18 | AI5: 2026-04-19 | AJ5: 2026-04-20 | AK5: 2026-04-21 | AL5: 2026-04-22 | AM5: 2026-04-23 | AN5: 2026-04-24 | AO5: 2026-04-25 | AP5: 2026-04-26 | AQ5: 2026-04-27 | AR5: =AQ5+1 -> 2026-04-28 | AS5: =IF(DAY(DATE($N$3,$W$3,29))=29,AR5+1,"") -> 2026-04-29 | AT5: =IF(DAY(DATE($N$3,$W$3,30))=30,AS5+1,"") -> 2026-04-30 | AU5: =IF(DAY(DATE($N$3,$W$3,31))=31,AT5+1,"") ->  | AV5: 勤務日数 | AX5: 常勤換算 | BL5: 2023 | BM5: 5
Q6: =VLOOKUP(WEEKDAY(Q5,2),$BA$7:$BB$14,2,FALSE) -> 水 | R6: 木 | S6: 金 | T6: 土 | U6: 日 | V6: 月 | W6: 火 | X6: 水 | Y6: 木 | Z6: 金 | AA6: 土 | AB6: 日 | AC6: 月 | AD6: 火 | AE6: 水 | AF6: 木 | AG6: 金 | AH6: 土 | AI6: 日 | AJ6: 月 | AK6: 火 | AL6: 水 | AM6: 木 | AN6: 金 | AO6: 土 | AP6: 日 | AQ6: 月 | AR6: 火 | AS6: =IF(AS5="","",VLOOKUP(WEEKDAY(AS5,2),$BA$7:$BB$14,2,FALSE)) -> 水 | AT6: =IF(AT5="","",VLOOKUP(WEEKDAY(AT5,2),$BA$7:$BB$14,2,FALSE)) -> 木 | AU6: =IF(AU5="","",VLOOKUP(WEEKDAY(AU5,2),$BA$7:$BB$14,2,FALSE)) ->  | AV6: 勤務時間 | BL6: =BL5+1 -> 2024 | BM6: =BM5+1 -> 6
B7: 例 | C7: 管理者 | I7: ○○ ○○ | N7: 常勤 兼務 | Q7: 7.75 | R7: 7.75 | S7: 7.75 | V7: 7.75 | W7: 7.75 | X7: 7.75 | Y7: 7.75 | Z7: 7.75 | AC7: 7.75 | AD7: 7.75 | AE7: 7.75 | AF7: 7.75 | AG7: 7.75 | AJ7: 7.75 | AK7: 7.75 | AL7: 7.75 | AM7: 7.75 | AN7: 7.75 | AQ7: 7.75 | AR7: 7.75 | AS7: 7.75 | AT7: 7.75 | AV7: =COUNTA(Q7:AU7) -> 22 | AW7: =AV8 -> 170.5 | AX7: 1.1 | BA7: 1 | BB7: 月 | BC7: 管理者 | BG7: 常勤 専従 | BH7: 常勤 兼務 | BI7: 非常勤 専従 | BJ7: 非常勤 兼務 | BL7: =BL6+1 -> 2025 | BM7: 7
AV8: =SUM(Q7:AU8) -> 170.5 | BA8: 2 | BB8: 火 | BC8: サービス提供責任者 | BL8: 2026 | BM8: 8
B9: 例 | C9: サービス提供責任者 | I9: ×× ×× | N9: 常勤 専従 | Q9: 6.75 | R9: 6.75 | S9: 6.75 | V9: 6.75 | W9: 6.75 | X9: 6.75 | Y9: 6.75 | Z9: 6.75 | AC9: 6.75 | AD9: 6.75 | AE9: 6.75 | AF9: 6.75 | AG9: 6.75 | AJ9: 6.75 | AK9: 6.75 | AL9: 6.75 | AM9: 6.75 | AN9: 6.75 | AQ9: 6.75 | AR9: 6.75 | AS9: 6.75 | AT9: 6.75 | AV9: =COUNTA(Q9:AU9) -> 22 | AW9: =AV10 -> 148.5 | AX9: 0.9 | BA9: 3 | BB9: 水 | BC9: ヘルパー | BL9: 2027 | BM9: 9
AV10: =SUM(Q9:AU10) -> 148.5 | BA10: 4 | BB10: 木 | BC10: 登録ヘルパー | BL10: 2028 | BM10: 10
B11: 例 | C11: ヘルパー | I11: △△ △△ | N11: 非常勤 兼務 | R11: 2.75 | S11: 2.75 | V11: 1.5 | W11: 1.5 | Y11: 2.75 | Z11: 2.75 | AC11: 1.5 | AD11: 1.5 | AF11: 2.75 | AG11: 2.75 | AJ11: 1.5 | AK11: 1.5 | AM11: 2.75 | AN11: 2.75 | AQ11: 1.5 | AR11: 1.5 | AT11: 2.75 | AV11: =COUNTA(Q11:AU11) -> 17 | AW11: =AV12 -> 36.75 | AX11: 0.2 | BA11: 5 | BB11: 金 | BL11: 2029 | BM11: 11
AV12: =SUM(Q11:AU12) -> 36.75 | BA12: 6 | BB12: 土 | BL12: 2030 | BM12: 12
B13: =ROW(B1) -> 1 | AV13: =COUNTA(Q13:AU13) -> 0 | AW13: =AV14 -> 0 | AX13: =IFERROR(ROUNDDOWN(AV14/$AT$3,1),"") ->  | BA13: 7 | BB13: 日
AV14: =SUM(Q13:AU13) -> 0
B15: =B13+1 -> 2 | AV15: =COUNTA(Q15:AU15) -> 0 | AW15: =AV16 -> 0 | AX15: =IFERROR(ROUNDDOWN(AV16/$AT$3,1),"") -> 
AV16: =SUM(Q15:AU15) -> 0
B17: =B15+1 -> 3 | AV17: =COUNTA(Q17:AU17) -> 0 | AW17: =AV18 -> 0 | AX17: =IFERROR(ROUNDDOWN(AV18/$AT$3,1),"") -> 
AV18: =SUM(Q17:AU17) -> 0
B19: =B17+1 -> 4 | AV19: =COUNTA(Q19:AU19) -> 0 | AW19: =AV20 -> 0 | AX19: =IFERROR(ROUNDDOWN(AV20/$AT$3,1),"") -> 
AV20: =SUM(Q19:AU19) -> 0
B21: =B19+1 -> 5 | AV21: =COUNTA(Q21:AU21) -> 0 | AW21: =AV22 -> 0 | AX21: =IFERROR(ROUNDDOWN(AV22/$AT$3,1),"") -> 
AV22: =SUM(Q21:AU21) -> 0
B23: =B21+1 -> 6 | AV23: 0 | AW23: =AV24 -> 0 | AX23: =IFERROR(ROUNDDOWN(AV24/$AT$3,1),"") -> 
AV24: 0
B25: =B23+1 -> 7 | AV25: 0 | AW25: =AV26 -> 0 | AX25: =IFERROR(ROUNDDOWN(AV26/$AT$3,1),"") -> 
AV26: 0
B27: =B25+1 -> 8 | AV27: 0 | AW27: =AV28 -> 0 | AX27: =IFERROR(ROUNDDOWN(AV28/$AT$3,1),"") -> 
AV28: 0
B29: =B27+1 -> 9 | AV29: 0 | AW29: =AV30 -> 0 | AX29: =IFERROR(ROUNDDOWN(AV30/$AT$3,1),"") -> 
AV30: 0
B31: =B29+1 -> 10 | AV31: 0 | AW31: =AV32 -> 0 | AX31: =IFERROR(ROUNDDOWN(AV32/$AT$3,1),"") -> 
AV32: 0
B33: =B31+1 -> 11 | AV33: 0 | AW33: =AV34 -> 0 | AX33: =IFERROR(ROUNDDOWN(AV34/$AT$3,1),"") -> 
AV34: 0
B35: =B33+1 -> 12 | AV35: 0 | AW35: =AV36 -> 0 | AX35: =IFERROR(ROUNDDOWN(AV36/$AT$3,1),"") -> 
AV36: 0
B37: =B35+1 -> 13 | AV37: 0 | AW37: =AV38 -> 0 | AX37: =IFERROR(ROUNDDOWN(AV38/$AT$3,1),"") -> 
AV38: 0
B39: =B37+1 -> 14 | AV39: 0 | AW39: =AV40 -> 0 | AX39: =IFERROR(ROUNDDOWN(AV40/$AT$3,1),"") -> 
AV40: 0
B41: =B39+1 -> 15 | AV41: 0 | AW41: =AV42 -> 0 | AX41: =IFERROR(ROUNDDOWN(AV42/$AT$3,1),"") -> 
AV42: 0
B43: =B41+1 -> 16 | AV43: 0 | AW43: =AV44 -> 0 | AX43: =IFERROR(ROUNDDOWN(AV44/$AT$3,1),"") -> 
AV44: 0
B45: =B43+1 -> 17 | AV45: 0 | AW45: =AV46 -> 0 | AX45: =IFERROR(ROUNDDOWN(AV46/$AT$3,1),"") -> 
AV46: 0
B47: =B45+1 -> 18 | AV47: 0 | AW47: =AV48 -> 0 | AX47: =IFERROR(ROUNDDOWN(AV48/$AT$3,1),"") -> 
AV48: 0
B49: =B47+1 -> 19 | AV49: 0 | AW49: =AV50 -> 0 | AX49: =IFERROR(ROUNDDOWN(AV50/$AT$3,1),"") -> 
AV50: 0
B51: =B49+1 -> 20 | AV51: 0 | AW51: =AV52 -> 0 | AX51: =IFERROR(ROUNDDOWN(AV52/$AT$3,1),"") -> 
AV52: 0
B53: 21 | AV53: 0 | AW53: =AV54 -> 0 | AX53: =IFERROR(ROUNDDOWN(AV54/$AT$3,1),"") -> 
AV54: 0
B55: 22 | AV55: 0 | AW55: =AV56 -> 0 | AX55: =IFERROR(ROUNDDOWN(AV56/$AT$3,1),"") -> 
AV56: 0
B57: 23 | AV57: 0 | AW57: =AV58 -> 0 | AX57: =IFERROR(ROUNDDOWN(AV58/$AT$3,1),"") -> 
AV58: 0
B59: 24 | AV59: 0 | AW59: =AV60 -> 0 | AX59: =IFERROR(ROUNDDOWN(AV60/$AT$3,1),"") -> 
AV60: 0
B61: 25 | AV61: 0 | AW61: =AV62 -> 0 | AX61: =IFERROR(ROUNDDOWN(AV62/$AT$3,1),"") -> 
AV62: 0
B63: 26 | AV63: 0 | AW63: =AV64 -> 0 | AX63: =IFERROR(ROUNDDOWN(AV64/$AT$3,1),"") -> 
AV64: 0
B65: 27 | AV65: 0 | AW65: =AV66 -> 0 | AX65: =IFERROR(ROUNDDOWN(AV66/$AT$3,1),"") -> 
AV66: 0
B67: 28 | AV67: 0 | AW67: =AV68 -> 0 | AX67: =IFERROR(ROUNDDOWN(AV68/$AT$3,1),"") -> 
AV68: 0
B69: 29 | AV69: 0 | AW69: =AV70 -> 0 | AX69: =IFERROR(ROUNDDOWN(AV70/$AT$3,1),"") -> 
AV70: 0
B71: 30 | AV71: 0 | AW71: =AV72 -> 0 | AX71: =IFERROR(ROUNDDOWN(AV72/$AT$3,1),"") -> 
AV72: 0
B73: 31 | AV73: 0 | AW73: =AV74 -> 0 | AX73: =IFERROR(ROUNDDOWN(AV74/$AT$3,1),"") -> 
AV74: 0
B75: 32 | AV75: 0 | AW75: =AV76 -> 0 | AX75: =IFERROR(ROUNDDOWN(AV76/$AT$3,1),"") -> 
AV76: 0
B77: 33 | AV77: 0 | AW77: =AV78 -> 0 | AX77: =IFERROR(ROUNDDOWN(AV78/$AT$3,1),"") -> 
AV78: 0
B79: 34 | AV79: 0 | AW79: =AV80 -> 0 | AX79: =IFERROR(ROUNDDOWN(AV80/$AT$3,1),"") -> 
AV80: 0
B81: 35 | AV81: 0 | AW81: =AV82 -> 0 | AX81: =IFERROR(ROUNDDOWN(AV82/$AT$3,1),"") -> 
AV82: 0
B83: 36 | AV83: 0 | AW83: =AV84 -> 0 | AX83: =IFERROR(ROUNDDOWN(AV84/$AT$3,1),"") -> 
AV84: 0
B85: 37 | AV85: =COUNTA(Q85:AU85) -> 0 | AW85: =AV86 -> 0 | AX85: =IFERROR(ROUNDDOWN(AV86/$AT$3,1),"") -> 
AV86: =SUM(Q85:AU85) -> 0
B87: =B85+1 -> 38 | AV87: 0 | AW87: =AV88 -> 0 | AX87: =IFERROR(ROUNDDOWN(AV88/$AT$3,1),"") -> 
AV88: 0
B89: 39 | AV89: 0 | AW89: =AV90 -> 0 | AX89: =IFERROR(ROUNDDOWN(AV90/$AT$3,1),"") -> 
AV90: 0
B91: 40 | AV91: 0 | AW91: =AV92 -> 0 | AX91: =IFERROR(ROUNDDOWN(AV92/$AT$3,1),"") -> 
AV92: 0
B93: 41 | AV93: 0 | AW93: =AV94 -> 0 | AX93: =IFERROR(ROUNDDOWN(AV94/$AT$3,1),"") -> 
AV94: 0
B95: =B93+1 -> 42 | AV95: 0 | AW95: =AV96 -> 0 | AX95: =IFERROR(ROUNDDOWN(AV96/$AT$3,1),"") -> 
AV96: 0
B97: 43 | AV97: 0 | AW97: =AV98 -> 0 | AX97: =IFERROR(ROUNDDOWN(AV98/$AT$3,1),"") -> 
AV98: 0
B99: 44 | AV99: 0 | AW99: =AV100 -> 0 | AX99: =IFERROR(ROUNDDOWN(AV100/$AT$3,1),"") -> 
AV100: 0
B101: 45 | AV101: 0 | AW101: =AV102 -> 0 | AX101: =IFERROR(ROUNDDOWN(AV102/$AT$3,1),"") -> 
AV102: 0
B103: 46 | AV103: 0 | AW103: =AV104 -> 0 | AX103: =IFERROR(ROUNDDOWN(AV104/$AT$3,1),"") -> 
AV104: 0
B105: 47 | AV105: 0 | AW105: =AV106 -> 0 | AX105: =IFERROR(ROUNDDOWN(AV106/$AT$3,1),"") -> 
AV106: 0
B107: 48 | AV107: 0 | AW107: =AV108 -> 0 | AX107: =IFERROR(ROUNDDOWN(AV108/$AT$3,1),"") -> 
AV108: 0
B109: 49 | AV109: 0 | AW109: =AV110 -> 0 | AX109: =IFERROR(ROUNDDOWN(AV110/$AT$3,1),"") -> 
AV110: 0
B111: 50 | AV111: 0 | AW111: =AV112 -> 0 | AX111: =IFERROR(ROUNDDOWN(AV112/$AT$3,1),"") -> 
AV112: 0
B113: 51 | AV113: 0 | AW113: =AV114 -> 0 | AX113: =IFERROR(ROUNDDOWN(AV114/$AT$3,1),"") -> 
AV114: 0
B115: 52 | AV115: 0 | AW115: =AV116 -> 0 | AX115: =IFERROR(ROUNDDOWN(AV116/$AT$3,1),"") -> 
AV116: 0
B117: 53 | AV117: 0 | AW117: =AV118 -> 0 | AX117: =IFERROR(ROUNDDOWN(AV118/$AT$3,1),"") -> 
AV118: 0
B119: 54 | AV119: 0 | AW119: =AV120 -> 0 | AX119: =IFERROR(ROUNDDOWN(AV120/$AT$3,1),"") -> 
AV120: 0
B121: 55 | AV121: 0 | AW121: =AV122 -> 0 | AX121: =IFERROR(ROUNDDOWN(AV122/$AT$3,1),"") -> 
AV122: 0
B123: 56 | AV123: =COUNTA(Q123:AU123) -> 0 | AW123: =AV124 -> 0 | AX123: =IFERROR(ROUNDDOWN(AV124/$AT$3,1),"") -> 
AV124: =SUM(Q123:AU123) -> 0
B125: 57 | AV125: 0 | AW125: =AV126 -> 0 | AX125: =IFERROR(ROUNDDOWN(AV126/$AT$3,1),"") -> 
AV126: 0
B127: 58 | AV127: 0 | AW127: =AV128 -> 0 | AX127: =IFERROR(ROUNDDOWN(AV128/$AT$3,1),"") -> 
AV128: 0
B129: 59 | AV129: 0 | AW129: =AV130 -> 0 | AX129: =IFERROR(ROUNDDOWN(AV130/$AT$3,1),"") -> 
AV130: 0
B131: 60 | AV131: 0 | AW131: =AV132 -> 0 | AX131: =IFERROR(ROUNDDOWN(AV132/$AT$3,1),"") -> 
AV132: 0
B133: 61 | AV133: 0 | AW133: =AV134 -> 0 | AX133: =IFERROR(ROUNDDOWN(AV134/$AT$3,1),"") -> 
AV134: 0
B135: =B133+1 -> 62 | AV135: 0 | AW135: =AV136 -> 0 | AX135: =IFERROR(ROUNDDOWN(AV136/$AT$3,1),"") -> 
AV136: 0
B137: =B135+1 -> 63 | AV137: 0 | AW137: =AV138 -> 0 | AX137: =IFERROR(ROUNDDOWN(AV138/$AT$3,1),"") -> 
AV138: 0
B139: 64 | AV139: 0 | AW139: =AV140 -> 0 | AX139: =IFERROR(ROUNDDOWN(AV140/$AT$3,1),"") -> 
AV140: 0
B141: 65 | AV141: 0 | AW141: =AV142 -> 0 | AX141: =IFERROR(ROUNDDOWN(AV142/$AT$3,1),"") -> 
AV142: 0
B143: 66 | AV143: 0 | AW143: =AV144 -> 0 | AX143: =IFERROR(ROUNDDOWN(AV144/$AT$3,1),"") -> 
AV144: 0
B145: 67 | AV145: 0 | AW145: =AV146 -> 0 | AX145: =IFERROR(ROUNDDOWN(AV146/$AT$3,1),"") -> 
AV146: 0
B147: 68 | AV147: 0 | AW147: =AV148 -> 0 | AX147: =IFERROR(ROUNDDOWN(AV148/$AT$3,1),"") -> 
AV148: 0
B149: 69 | AV149: 0 | AW149: =AV150 -> 0 | AX149: =IFERROR(ROUNDDOWN(AV150/$AT$3,1),"") -> 
AV150: 0
B151: 70 | AV151: 0 | AW151: =AV152 -> 0 | AX151: =IFERROR(ROUNDDOWN(AV152/$AT$3,1),"") -> 
AV152: 0
B153: 71 | AV153: 0 | AW153: =AV154 -> 0 | AX153: =IFERROR(ROUNDDOWN(AV154/$AT$3,1),"") -> 
AV154: 0
B155: 72 | AV155: 0 | AW155: =AV156 -> 0 | AX155: =IFERROR(ROUNDDOWN(AV156/$AT$3,1),"") -> 
AV156: 0
B157: 73 | AV157: 0 | AW157: =AV158 -> 0 | AX157: =IFERROR(ROUNDDOWN(AV158/$AT$3,1),"") -> 
AV158: 0
B159: 74 | AV159: 0 | AW159: =AV160 -> 0 | AX159: =IFERROR(ROUNDDOWN(AV160/$AT$3,1),"") -> 
AV160: 0
B161: 75 | AV161: 0 | AW161: =AV162 -> 0 | AX161: =IFERROR(ROUNDDOWN(AV162/$AT$3,1),"") -> 
AV162: 0
B163: 76 | AV163: 0 | AW163: =AV164 -> 0 | AX163: =IFERROR(ROUNDDOWN(AV164/$AT$3,1),"") -> 
AV164: 0
B165: 77 | AV165: 0 | AW165: =AV166 -> 0 | AX165: =IFERROR(ROUNDDOWN(AV166/$AT$3,1),"") -> 
AV166: 0
B167: 78 | AV167: 0 | AW167: =AV168 -> 0 | AX167: =IFERROR(ROUNDDOWN(AV168/$AT$3,1),"") -> 
AV168: 0
B169: 79 | AV169: 0 | AW169: =AV170 -> 0 | AX169: =IFERROR(ROUNDDOWN(AV170/$AT$3,1),"") -> 
AV170: 0
B171: 80 | AV171: 0 | AW171: =AV172 -> 0 | AX171: =IFERROR(ROUNDDOWN(AV172/$AT$3,1),"") -> 
AV172: 0
B173: 81 | AV173: 0 | AW173: =AV174 -> 0 | AX173: =IFERROR(ROUNDDOWN(AV174/$AT$3,1),"") -> 
AV174: 0
B175: 82 | AV175: 0 | AW175: =AV176 -> 0 | AX175: =IFERROR(ROUNDDOWN(AV176/$AT$3,1),"") -> 
AV176: 0
B177: 83 | AV177: 0 | AW177: =AV178 -> 0 | AX177: =IFERROR(ROUNDDOWN(AV178/$AT$3,1),"") -> 
AV178: 0
B179: =B177+1 -> 84 | AV179: 0 | AW179: =AV180 -> 0 | AX179: =IFERROR(ROUNDDOWN(AV180/$AT$3,1),"") -> 
AV180: 0
B181: =B179+1 -> 85 | AV181: 0 | AW181: =AV182 -> 0 | AX181: =IFERROR(ROUNDDOWN(AV182/$AT$3,1),"") -> 
AV182: 0
B183: 86 | AV183: 0 | AW183: =AV184 -> 0 | AX183: =IFERROR(ROUNDDOWN(AV184/$AT$3,1),"") -> 
AV184: 0
B185: 87 | AV185: 0 | AW185: =AV186 -> 0 | AX185: =IFERROR(ROUNDDOWN(AV186/$AT$3,1),"") -> 
AV186: 0
B187: 88 | AV187: =COUNTA(Q187:AU187) -> 0 | AW187: =AV188 -> 0 | AX187: =IFERROR(ROUNDDOWN(AV188/$AT$3,1),"") -> 
AV188: =SUM(Q187:AU187) -> 0
B189: 89 | AV189: 0 | AW189: =AV190 -> 0 | AX189: =IFERROR(ROUNDDOWN(AV190/$AT$3,1),"") -> 
AV190: 0
B191: 90 | AV191: 0 | AW191: =AV192 -> 0 | AX191: =IFERROR(ROUNDDOWN(AV192/$AT$3,1),"") -> 
AV192: 0
B193: 91 | AV193: 0 | AW193: =AV194 -> 0 | AX193: =IFERROR(ROUNDDOWN(AV194/$AT$3,1),"") -> 
AV194: 0
B195: 92 | AV195: 0 | AW195: =AV196 -> 0 | AX195: =IFERROR(ROUNDDOWN(AV196/$AT$3,1),"") -> 
AV196: 0
B197: 93 | AV197: 0 | AW197: =AV198 -> 0 | AX197: =IFERROR(ROUNDDOWN(AV198/$AT$3,1),"") -> 
AV198: 0
B199: 94 | AV199: 0 | AW199: =AV200 -> 0 | AX199: =IFERROR(ROUNDDOWN(AV200/$AT$3,1),"") -> 
AV200: 0
B201: 95 | AV201: 0 | AW201: =AV202 -> 0 | AX201: =IFERROR(ROUNDDOWN(AV202/$AT$3,1),"") -> 
AV202: 0
B203: 96 | AV203: 0 | AW203: =AV204 -> 0 | AX203: =IFERROR(ROUNDDOWN(AV204/$AT$3,1),"") -> 
... 19 more rows

Sheet P2-3
B3: ２ 職員の勤務実績（既存資料の添付可） | N3: =YEAR(EOMONTH(DATE(SUM(2018+【共通】!L9),【共通】!N9,【共通】!P9),-2)) -> 2026 | S3: （ | T3: =IFERROR("令和 "&VLOOKUP(N3,BL5:BM12,2,FALSE),"") -> 令和 8 | V3: 年 | W3: =MONTH(EOMONTH(DATE(2023,【共通】!N9,【共通】!P9),-4)) -> 3 | X3: 月分実績 | Z3: ） | AA3: 当該事業所の常勤の職員が当該月に勤務すべき時間数 | AN3: 時間／日 | AR3: 時間／週 | AV3: 時間／月 | AX3: ="1 / "&COUNTA(C$7,C$49,#REF!,C$135,C$179) -> 1 / 2
C5: 職 種 | I5: 氏 名 | N5: 勤務 形態 | Q5: =DATE($N$3,$W$3,1) -> 2026-03-01 | R5: =Q5+1 -> 2026-03-02 | S5: =R5+1 -> 2026-03-03 | T5: =S5+1 -> 2026-03-04 | U5: 2026-03-05 | V5: 2026-03-06 | W5: 2026-03-07 | X5: 2026-03-08 | Y5: 2026-03-09 | Z5: 2026-03-10 | AA5: 2026-03-11 | AB5: 2026-03-12 | AC5: 2026-03-13 | AD5: 2026-03-14 | AE5: 2026-03-15 | AF5: 2026-03-16 | AG5: 2026-03-17 | AH5: 2026-03-18 | AI5: 2026-03-19 | AJ5: 2026-03-20 | AK5: 2026-03-21 | AL5: 2026-03-22 | AM5: 2026-03-23 | AN5: 2026-03-24 | AO5: 2026-03-25 | AP5: 2026-03-26 | AQ5: 2026-03-27 | AR5: =AQ5+1 -> 2026-03-28 | AS5: =IF(DAY(DATE($N$3,$W$3,29))=29,AR5+1,"") -> 2026-03-29 | AT5: =IF(DAY(DATE($N$3,$W$3,30))=30,AS5+1,"") -> 2026-03-30 | AU5: =IF(DAY(DATE($N$3,$W$3,31))=31,AT5+1,"") -> 2026-03-31 | AV5: 勤務日数 | AX5: 常勤換算 | BL5: 2023 | BM5: 5
Q6: =VLOOKUP(WEEKDAY(Q5,2),$BA$7:$BB$14,2,FALSE) -> 日 | R6: 月 | S6: 火 | T6: 水 | U6: 木 | V6: 金 | W6: 土 | X6: 日 | Y6: 月 | Z6: 火 | AA6: 水 | AB6: 木 | AC6: 金 | AD6: 土 | AE6: 日 | AF6: 月 | AG6: 火 | AH6: 水 | AI6: 木 | AJ6: 金 | AK6: 土 | AL6: 日 | AM6: 月 | AN6: 火 | AO6: 水 | AP6: 木 | AQ6: 金 | AR6: 土 | AS6: =IF(AS5="","",VLOOKUP(WEEKDAY(AS5,2),$BA$7:$BB$14,2,FALSE)) -> 日 | AT6: =IF(AT5="","",VLOOKUP(WEEKDAY(AT5,2),$BA$7:$BB$14,2,FALSE)) -> 月 | AU6: =IF(AU5="","",VLOOKUP(WEEKDAY(AU5,2),$BA$7:$BB$14,2,FALSE)) -> 火 | AV6: 勤務時間 | BL6: =BL5+1 -> 2024 | BM6: =BM5+1 -> 6
B7: 例 | C7: 管理者 | I7: ○○ ○○ | N7: 常勤 兼務 | Q7: 7.75 | R7: 7.75 | S7: 7.75 | V7: 7.75 | W7: 7.75 | X7: 7.75 | Y7: 7.75 | Z7: 7.75 | AC7: 7.75 | AD7: 7.75 | AE7: 7.75 | AF7: 7.75 | AG7: 7.75 | AJ7: 7.75 | AK7: 7.75 | AL7: 7.75 | AM7: 7.75 | AN7: 7.75 | AQ7: 7.75 | AR7: 7.75 | AS7: 7.75 | AT7: 7.75 | AV7: =COUNTA(Q7:AU7) -> 22 | AW7: =AV8 -> 170.5 | AX7: 1.1 | BA7: 1 | BB7: 月 | BC7: 管理者 | BG7: 常勤 専従 | BH7: 常勤 兼務 | BI7: 非常勤 専従 | BJ7: 非常勤 兼務 | BL7: =BL6+1 -> 2025 | BM7: 7
AV8: =SUM(Q7:AU8) -> 170.5 | BA8: 2 | BB8: 火 | BC8: サービス提供責任者 | BL8: 2026 | BM8: 8
B9: 例 | C9: サービス提供責任者 | I9: ×× ×× | N9: 常勤 専従 | Q9: 6.75 | R9: 6.75 | S9: 6.75 | V9: 6.75 | W9: 6.75 | X9: 6.75 | Y9: 6.75 | Z9: 6.75 | AC9: 6.75 | AD9: 6.75 | AE9: 6.75 | AF9: 6.75 | AG9: 6.75 | AJ9: 6.75 | AK9: 6.75 | AL9: 6.75 | AM9: 6.75 | AN9: 6.75 | AQ9: 6.75 | AR9: 6.75 | AS9: 6.75 | AT9: 6.75 | AV9: =COUNTA(Q9:AU9) -> 22 | AW9: =AV10 -> 148.5 | AX9: 0.9 | BA9: 3 | BB9: 水 | BC9: ヘルパー | BL9: 2027 | BM9: 9
AV10: =SUM(Q9:AU10) -> 148.5 | BA10: 4 | BB10: 木 | BC10: 登録ヘルパー | BL10: 2028 | BM10: 10
B11: 例 | C11: ヘルパー | I11: △△ △△ | N11: 非常勤 兼務 | R11: 2.75 | S11: 2.75 | V11: 1.5 | W11: 1.5 | Y11: 2.75 | Z11: 2.75 | AC11: 1.5 | AD11: 1.5 | AF11: 2.75 | AG11: 2.75 | AJ11: 1.5 | AK11: 1.5 | AM11: 2.75 | AN11: 2.75 | AQ11: 1.5 | AR11: 1.5 | AT11: 2.75 | AV11: =COUNTA(Q11:AU11) -> 17 | AW11: =AV12 -> 36.75 | AX11: 0.2 | BA11: 5 | BB11: 金 | BL11: 2029 | BM11: 11
AV12: =SUM(Q11:AU12) -> 36.75 | BA12: 6 | BB12: 土 | BL12: 2030 | BM12: 12
B13: =ROW(B1) -> 1 | AV13: =COUNTA(Q13:AU13) -> 0 | AW13: =AV14 -> 0 | AX13: =IFERROR(ROUNDDOWN(AV14/$AT$3,1),"") ->  | BA13: 7 | BB13: 日
AV14: =SUM(Q13:AU13) -> 0
B15: =B13+1 -> 2 | AV15: =COUNTA(Q15:AU15) -> 0 | AW15: =AV16 -> 0 | AX15: =IFERROR(ROUNDDOWN(AV16/$AT$3,1),"") -> 
AV16: =SUM(Q15:AU15) -> 0
B17: =B15+1 -> 3 | AV17: =COUNTA(Q17:AU17) -> 0 | AW17: =AV18 -> 0 | AX17: =IFERROR(ROUNDDOWN(AV18/$AT$3,1),"") -> 
AV18: =SUM(Q17:AU17) -> 0
B19: =B17+1 -> 4 | AV19: =COUNTA(Q19:AU19) -> 0 | AW19: =AV20 -> 0 | AX19: =IFERROR(ROUNDDOWN(AV20/$AT$3,1),"") -> 
AV20: =SUM(Q19:AU19) -> 0
B21: =B19+1 -> 5 | AV21: =COUNTA(Q21:AU21) -> 0 | AW21: =AV22 -> 0 | AX21: =IFERROR(ROUNDDOWN(AV22/$AT$3,1),"") -> 
AV22: =SUM(Q21:AU21) -> 0
B23: =B21+1 -> 6 | AV23: 0 | AW23: =AV24 -> 0 | AX23: =IFERROR(ROUNDDOWN(AV24/$AT$3,1),"") -> 
AV24: 0
B25: =B23+1 -> 7 | AV25: 0 | AW25: =AV26 -> 0 | AX25: =IFERROR(ROUNDDOWN(AV26/$AT$3,1),"") -> 
AV26: 0
B27: =B25+1 -> 8 | AV27: 0 | AW27: =AV28 -> 0 | AX27: =IFERROR(ROUNDDOWN(AV28/$AT$3,1),"") -> 
AV28: 0
B29: =B27+1 -> 9 | AV29: 0 | AW29: =AV30 -> 0 | AX29: =IFERROR(ROUNDDOWN(AV30/$AT$3,1),"") -> 
AV30: 0
B31: =B29+1 -> 10 | AV31: 0 | AW31: =AV32 -> 0 | AX31: =IFERROR(ROUNDDOWN(AV32/$AT$3,1),"") -> 
AV32: 0
B33: =B31+1 -> 11 | AV33: 0 | AW33: =AV34 -> 0 | AX33: =IFERROR(ROUNDDOWN(AV34/$AT$3,1),"") -> 
AV34: 0
B35: =B33+1 -> 12 | AV35: 0 | AW35: =AV36 -> 0 | AX35: =IFERROR(ROUNDDOWN(AV36/$AT$3,1),"") -> 
AV36: 0
B37: =B35+1 -> 13 | AV37: 0 | AW37: =AV38 -> 0 | AX37: =IFERROR(ROUNDDOWN(AV38/$AT$3,1),"") -> 
AV38: 0
B39: =B37+1 -> 14 | AV39: 0 | AW39: =AV40 -> 0 | AX39: =IFERROR(ROUNDDOWN(AV40/$AT$3,1),"") -> 
AV40: 0
B41: =B39+1 -> 15 | AV41: 0 | AW41: =AV42 -> 0 | AX41: =IFERROR(ROUNDDOWN(AV42/$AT$3,1),"") -> 
AV42: 0
B43: =B41+1 -> 16 | AV43: 0 | AW43: =AV44 -> 0 | AX43: =IFERROR(ROUNDDOWN(AV44/$AT$3,1),"") -> 
AV44: 0
B45: =B43+1 -> 17 | AV45: 0 | AW45: =AV46 -> 0 | AX45: =IFERROR(ROUNDDOWN(AV46/$AT$3,1),"") -> 
AV46: 0
B47: =B45+1 -> 18 | AV47: 0 | AW47: =AV48 -> 0 | AX47: =IFERROR(ROUNDDOWN(AV48/$AT$3,1),"") -> 
AV48: 0
B49: =B47+1 -> 19 | AV49: 0 | AW49: =AV50 -> 0 | AX49: =IFERROR(ROUNDDOWN(AV50/$AT$3,1),"") -> 
AV50: 0
B51: =B49+1 -> 20 | AV51: 0 | AW51: =AV52 -> 0 | AX51: =IFERROR(ROUNDDOWN(AV52/$AT$3,1),"") -> 
AV52: 0
B53: 21 | AV53: 0 | AW53: =AV54 -> 0 | AX53: =IFERROR(ROUNDDOWN(AV54/$AT$3,1),"") -> 
AV54: 0
B55: 22 | AV55: 0 | AW55: =AV56 -> 0 | AX55: =IFERROR(ROUNDDOWN(AV56/$AT$3,1),"") -> 
AV56: 0
B57: 23 | AV57: 0 | AW57: =AV58 -> 0 | AX57: =IFERROR(ROUNDDOWN(AV58/$AT$3,1),"") -> 
AV58: 0
B59: 24 | AV59: 0 | AW59: =AV60 -> 0 | AX59: =IFERROR(ROUNDDOWN(AV60/$AT$3,1),"") -> 
AV60: 0
B61: 25 | AV61: 0 | AW61: =AV62 -> 0 | AX61: =IFERROR(ROUNDDOWN(AV62/$AT$3,1),"") -> 
AV62: 0
B63: 26 | AV63: 0 | AW63: =AV64 -> 0 | AX63: =IFERROR(ROUNDDOWN(AV64/$AT$3,1),"") -> 
AV64: 0
B65: 27 | AV65: 0 | AW65: =AV66 -> 0 | AX65: =IFERROR(ROUNDDOWN(AV66/$AT$3,1),"") -> 
AV66: 0
B67: 28 | AV67: 0 | AW67: =AV68 -> 0 | AX67: =IFERROR(ROUNDDOWN(AV68/$AT$3,1),"") -> 
AV68: 0
B69: 29 | AV69: 0 | AW69: =AV70 -> 0 | AX69: =IFERROR(ROUNDDOWN(AV70/$AT$3,1),"") -> 
AV70: 0
B71: 30 | AV71: 0 | AW71: =AV72 -> 0 | AX71: =IFERROR(ROUNDDOWN(AV72/$AT$3,1),"") -> 
AV72: 0
B73: 31 | AV73: 0 | AW73: =AV74 -> 0 | AX73: =IFERROR(ROUNDDOWN(AV74/$AT$3,1),"") -> 
AV74: 0
B75: 32 | AV75: 0 | AW75: =AV76 -> 0 | AX75: =IFERROR(ROUNDDOWN(AV76/$AT$3,1),"") -> 
AV76: 0
B77: 33 | AV77: 0 | AW77: =AV78 -> 0 | AX77: =IFERROR(ROUNDDOWN(AV78/$AT$3,1),"") -> 
AV78: 0
B79: 34 | AV79: 0 | AW79: =AV80 -> 0 | AX79: =IFERROR(ROUNDDOWN(AV80/$AT$3,1),"") -> 
AV80: 0
B81: 35 | AV81: 0 | AW81: =AV82 -> 0 | AX81: =IFERROR(ROUNDDOWN(AV82/$AT$3,1),"") -> 
AV82: 0
B83: 36 | AV83: 0 | AW83: =AV84 -> 0 | AX83: =IFERROR(ROUNDDOWN(AV84/$AT$3,1),"") -> 
AV84: 0
B85: 37 | AV85: =COUNTA(Q85:AU85) -> 0 | AW85: =AV86 -> 0 | AX85: =IFERROR(ROUNDDOWN(AV86/$AT$3,1),"") -> 
AV86: =SUM(Q85:AU85) -> 0
B87: =B85+1 -> 38 | AV87: 0 | AW87: =AV88 -> 0 | AX87: =IFERROR(ROUNDDOWN(AV88/$AT$3,1),"") -> 
AV88: 0
B89: 39 | AV89: 0 | AW89: =AV90 -> 0 | AX89: =IFERROR(ROUNDDOWN(AV90/$AT$3,1),"") -> 
AV90: 0
B91: 40 | AV91: 0 | AW91: =AV92 -> 0 | AX91: =IFERROR(ROUNDDOWN(AV92/$AT$3,1),"") -> 
AV92: 0
B93: 41 | AV93: 0 | AW93: =AV94 -> 0 | AX93: =IFERROR(ROUNDDOWN(AV94/$AT$3,1),"") -> 
AV94: 0
B95: =B93+1 -> 42 | AV95: 0 | AW95: =AV96 -> 0 | AX95: =IFERROR(ROUNDDOWN(AV96/$AT$3,1),"") -> 
AV96: 0
B97: 43 | AV97: 0 | AW97: =AV98 -> 0 | AX97: =IFERROR(ROUNDDOWN(AV98/$AT$3,1),"") -> 
AV98: 0
B99: 44 | AV99: 0 | AW99: =AV100 -> 0 | AX99: =IFERROR(ROUNDDOWN(AV100/$AT$3,1),"") -> 
AV100: 0
B101: 45 | AV101: 0 | AW101: =AV102 -> 0 | AX101: =IFERROR(ROUNDDOWN(AV102/$AT$3,1),"") -> 
AV102: 0
B103: 46 | AV103: 0 | AW103: =AV104 -> 0 | AX103: =IFERROR(ROUNDDOWN(AV104/$AT$3,1),"") -> 
AV104: 0
B105: 47 | AV105: 0 | AW105: =AV106 -> 0 | AX105: =IFERROR(ROUNDDOWN(AV106/$AT$3,1),"") -> 
AV106: 0
B107: 48 | AV107: 0 | AW107: =AV108 -> 0 | AX107: =IFERROR(ROUNDDOWN(AV108/$AT$3,1),"") -> 
AV108: 0
B109: 49 | AV109: 0 | AW109: =AV110 -> 0 | AX109: =IFERROR(ROUNDDOWN(AV110/$AT$3,1),"") -> 
AV110: 0
B111: 50 | AV111: 0 | AW111: =AV112 -> 0 | AX111: =IFERROR(ROUNDDOWN(AV112/$AT$3,1),"") -> 
AV112: 0
B113: 51 | AV113: 0 | AW113: =AV114 -> 0 | AX113: =IFERROR(ROUNDDOWN(AV114/$AT$3,1),"") -> 
AV114: 0
B115: 52 | AV115: 0 | AW115: =AV116 -> 0 | AX115: =IFERROR(ROUNDDOWN(AV116/$AT$3,1),"") -> 
AV116: 0
B117: 53 | AV117: 0 | AW117: =AV118 -> 0 | AX117: =IFERROR(ROUNDDOWN(AV118/$AT$3,1),"") -> 
AV118: 0
B119: 54 | AV119: 0 | AW119: =AV120 -> 0 | AX119: =IFERROR(ROUNDDOWN(AV120/$AT$3,1),"") -> 
AV120: 0
B121: 55 | AV121: 0 | AW121: =AV122 -> 0 | AX121: =IFERROR(ROUNDDOWN(AV122/$AT$3,1),"") -> 
AV122: 0
B123: 56 | AV123: =COUNTA(Q123:AU123) -> 0 | AW123: =AV124 -> 0 | AX123: =IFERROR(ROUNDDOWN(AV124/$AT$3,1),"") -> 
AV124: =SUM(Q123:AU123) -> 0
B125: 57 | AV125: 0 | AW125: =AV126 -> 0 | AX125: =IFERROR(ROUNDDOWN(AV126/$AT$3,1),"") -> 
AV126: 0
B127: 58 | AV127: 0 | AW127: =AV128 -> 0 | AX127: =IFERROR(ROUNDDOWN(AV128/$AT$3,1),"") -> 
AV128: 0
B129: 59 | AV129: 0 | AW129: =AV130 -> 0 | AX129: =IFERROR(ROUNDDOWN(AV130/$AT$3,1),"") -> 
AV130: 0
B131: 60 | AV131: 0 | AW131: =AV132 -> 0 | AX131: =IFERROR(ROUNDDOWN(AV132/$AT$3,1),"") -> 
AV132: 0
B133: 61 | AV133: 0 | AW133: =AV134 -> 0 | AX133: =IFERROR(ROUNDDOWN(AV134/$AT$3,1),"") -> 
AV134: 0
B135: =B133+1 -> 62 | AV135: 0 | AW135: =AV136 -> 0 | AX135: =IFERROR(ROUNDDOWN(AV136/$AT$3,1),"") -> 
AV136: 0
B137: =B135+1 -> 63 | AV137: 0 | AW137: =AV138 -> 0 | AX137: =IFERROR(ROUNDDOWN(AV138/$AT$3,1),"") -> 
AV138: 0
B139: 64 | AV139: 0 | AW139: =AV140 -> 0 | AX139: =IFERROR(ROUNDDOWN(AV140/$AT$3,1),"") -> 
AV140: 0
B141: 65 | AV141: 0 | AW141: =AV142 -> 0 | AX141: =IFERROR(ROUNDDOWN(AV142/$AT$3,1),"") -> 
AV142: 0
B143: 66 | AV143: 0 | AW143: =AV144 -> 0 | AX143: =IFERROR(ROUNDDOWN(AV144/$AT$3,1),"") -> 
AV144: 0
B145: 67 | AV145: 0 | AW145: =AV146 -> 0 | AX145: =IFERROR(ROUNDDOWN(AV146/$AT$3,1),"") -> 
AV146: 0
B147: 68 | AV147: 0 | AW147: =AV148 -> 0 | AX147: =IFERROR(ROUNDDOWN(AV148/$AT$3,1),"") -> 
AV148: 0
B149: 69 | AV149: 0 | AW149: =AV150 -> 0 | AX149: =IFERROR(ROUNDDOWN(AV150/$AT$3,1),"") -> 
AV150: 0
B151: 70 | AV151: 0 | AW151: =AV152 -> 0 | AX151: =IFERROR(ROUNDDOWN(AV152/$AT$3,1),"") -> 
AV152: 0
B153: 71 | AV153: 0 | AW153: =AV154 -> 0 | AX153: =IFERROR(ROUNDDOWN(AV154/$AT$3,1),"") -> 
AV154: 0
B155: 72 | AV155: 0 | AW155: =AV156 -> 0 | AX155: =IFERROR(ROUNDDOWN(AV156/$AT$3,1),"") -> 
AV156: 0
B157: 73 | AV157: 0 | AW157: =AV158 -> 0 | AX157: =IFERROR(ROUNDDOWN(AV158/$AT$3,1),"") -> 
AV158: 0
B159: 74 | AV159: 0 | AW159: =AV160 -> 0 | AX159: =IFERROR(ROUNDDOWN(AV160/$AT$3,1),"") -> 
AV160: 0
B161: 75 | AV161: 0 | AW161: =AV162 -> 0 | AX161: =IFERROR(ROUNDDOWN(AV162/$AT$3,1),"") -> 
AV162: 0
B163: 76 | AV163: 0 | AW163: =AV164 -> 0 | AX163: =IFERROR(ROUNDDOWN(AV164/$AT$3,1),"") -> 
AV164: 0
B165: 77 | AV165: 0 | AW165: =AV166 -> 0 | AX165: =IFERROR(ROUNDDOWN(AV166/$AT$3,1),"") -> 
AV166: 0
B167: 78 | AV167: 0 | AW167: =AV168 -> 0 | AX167: =IFERROR(ROUNDDOWN(AV168/$AT$3,1),"") -> 
AV168: 0
B169: 79 | AV169: 0 | AW169: =AV170 -> 0 | AX169: =IFERROR(ROUNDDOWN(AV170/$AT$3,1),"") -> 
AV170: 0
B171: 80 | AV171: 0 | AW171: =AV172 -> 0 | AX171: =IFERROR(ROUNDDOWN(AV172/$AT$3,1),"") -> 
AV172: 0
B173: 81 | AV173: 0 | AW173: =AV174 -> 0 | AX173: =IFERROR(ROUNDDOWN(AV174/$AT$3,1),"") -> 
AV174: 0
B175: 82 | AV175: 0 | AW175: =AV176 -> 0 | AX175: =IFERROR(ROUNDDOWN(AV176/$AT$3,1),"") -> 
AV176: 0
B177: 83 | AV177: 0 | AW177: =AV178 -> 0 | AX177: =IFERROR(ROUNDDOWN(AV178/$AT$3,1),"") -> 
AV178: 0
B179: =B177+1 -> 84 | AV179: 0 | AW179: =AV180 -> 0 | AX179: =IFERROR(ROUNDDOWN(AV180/$AT$3,1),"") -> 
AV180: 0
B181: =B179+1 -> 85 | AV181: 0 | AW181: =AV182 -> 0 | AX181: =IFERROR(ROUNDDOWN(AV182/$AT$3,1),"") -> 
AV182: 0
B183: 86 | AV183: 0 | AW183: =AV184 -> 0 | AX183: =IFERROR(ROUNDDOWN(AV184/$AT$3,1),"") -> 
AV184: 0
B185: 87 | AV185: 0 | AW185: =AV186 -> 0 | AX185: =IFERROR(ROUNDDOWN(AV186/$AT$3,1),"") -> 
AV186: 0
B187: 88 | AV187: =COUNTA(Q187:AU187) -> 0 | AW187: =AV188 -> 0 | AX187: =IFERROR(ROUNDDOWN(AV188/$AT$3,1),"") -> 
AV188: =SUM(Q187:AU187) -> 0
B189: 89 | AV189: 0 | AW189: =AV190 -> 0 | AX189: =IFERROR(ROUNDDOWN(AV190/$AT$3,1),"") -> 
AV190: 0
B191: 90 | AV191: 0 | AW191: =AV192 -> 0 | AX191: =IFERROR(ROUNDDOWN(AV192/$AT$3,1),"") -> 
AV192: 0
B193: 91 | AV193: 0 | AW193: =AV194 -> 0 | AX193: =IFERROR(ROUNDDOWN(AV194/$AT$3,1),"") -> 
AV194: 0
B195: 92 | AV195: 0 | AW195: =AV196 -> 0 | AX195: =IFERROR(ROUNDDOWN(AV196/$AT$3,1),"") -> 
AV196: 0
B197: 93 | AV197: 0 | AW197: =AV198 -> 0 | AX197: =IFERROR(ROUNDDOWN(AV198/$AT$3,1),"") -> 
AV198: 0
B199: 94 | AV199: 0 | AW199: =AV200 -> 0 | AX199: =IFERROR(ROUNDDOWN(AV200/$AT$3,1),"") -> 
AV200: 0
B201: 95 | AV201: 0 | AW201: =AV202 -> 0 | AX201: =IFERROR(ROUNDDOWN(AV202/$AT$3,1),"") -> 
AV202: 0
B203: 96 | AV203: 0 | AW203: =AV204 -> 0 | AX203: =IFERROR(ROUNDDOWN(AV204/$AT$3,1),"") -> 
... 19 more rows

Sheet P3
B1: ３ サービス提供責任者配置数の根拠 （直近３か月のサービス提供時間・実利用者数・従業者数の状況）
B3: （1） サービス提供責任者の配置計算 | G3: 実人員配置方法 | K3: 常勤換算方法
B4: ※上記のうち、サービス提供責任者の配置計算で採用している方法を選択すること。
B6: （2） 配置数根拠
E7: =MONTH(EOMONTH(DATE(2023,【共通】!N9,【共通】!P9),-4)) -> 3 | F7: 月 | G7: =MONTH(EOMONTH(DATE(2023,【共通】!N9,【共通】!P9),-3)) -> 4 | H7: 月 | I7: =MONTH(EOMONTH(DATE(2023,【共通】!N9,【共通】!P9),-2)) -> 5 | J7: 月 | K7: 合計 | M7: ３か月平均 (a) | O7: 係数 (b) | P7: 必置数 (a)÷(b)
B8: 月延べサービス提供時間 計 （待機時間・移動時間を除く。） | E8: =SUM(E9:E15) -> 0 | F8: 時間 | G8: =SUM(G9:G15) -> 0 | H8: 時間 | I8: =SUM(I9:I15) -> 0 | J8: 時間 | K8: =E8+G8+I8 -> 0 | L8: 時間 | M8: =ROUNDUP(K8/3,1) -> 0 | N8: 時間 | O8: 450時間 | P8: =M8/450 -> 0
C9: 訪問介護 | F9: 時間 | H9: 時間 | J9: 時間 | K9: 0 | L9: 時間 | M9: =ROUNDUP(K9/3,1) -> 0 | N9: 時間
C10: 介護予防訪問介護 | F10: 時間 | H10: 時間 | J10: 時間 | K10: 0 | L10: 時間 | M10: 0 | N10: 時間
C11: 居宅介護 | F11: 時間 | H11: 時間 | J11: 時間 | K11: 0 | L11: 時間 | M11: 0 | N11: 時間
C12: 重度訪問介護 | F12: 時間 | H12: 時間 | J12: 時間 | K12: 0 | L12: 時間 | M12: 0 | N12: 時間
C13: 同行援護 | F13: 時間 | H13: 時間 | J13: 時間 | K13: 0 | L13: 時間 | M13: 0 | N13: 時間
C14: 行動援護 | F14: 時間 | H14: 時間 | J14: 時間 | K14: 0 | L14: 時間 | M14: 0 | N14: 時間
C15: 移動支援 | F15: 時間 | H15: 時間 | J15: 時間 | K15: 0 | L15: 時間 | M15: 0 | N15: 時間
B16: 各月の実利用者数 計 | E16: =SUM(E17:E23) -> 0 | F16: 人 | G16: =SUM(G17:G23) -> 0 | H16: 人 | I16: =SUM(I17:I23) -> 0 | J16: 人 | K16: =E16+G16+I16 -> 0 | L16: 人 | M16: =ROUNDUP(K16/3,1) -> 0 | N16: 人 | O16: 40人 | P16: =M16/40 -> 0
C17: 訪問介護 | F17: 人 | H17: 人 | J17: 人 | K17: 0 | L17: 人 | M17: 0 | N17: 人
C18: 介護予防訪問介護 | F18: 人 | H18: 人 | J18: 人 | K18: 0 | L18: 人 | M18: 0 | N18: 人
C19: 居宅介護 | F19: 人 | H19: 人 | J19: 人 | K19: 0 | L19: 人 | M19: 0 | N19: 人
C20: 重度訪問介護 | F20: 人 | H20: 人 | J20: 人 | K20: 0 | L20: 人 | M20: 0 | N20: 人
C21: 同行援護 | F21: 人 | H21: 人 | J21: 人 | K21: 0 | L21: 人 | M21: 0 | N21: 人
C22: 行動援護 | F22: 人 | H22: 人 | J22: 人 | K22: 0 | L22: 人 | M22: 0 | N22: 人
C23: 移動支援 | F23: 人 | H23: 人 | J23: 人 | K23: 0 | L23: 人 | M23: 0 | N23: 人
B24: 各月の実従業者数 計 | E24: =SUM(E25:E31) -> 0 | F24: 人 | G24: =SUM(G25:G31) -> 0 | H24: 人 | I24: =SUM(I25:I31) -> 0 | J24: 人 | K24: 0 | L24: 人 | M24: 0 | N24: 人 | O24: 10人 | P24: =M24/10 -> 0
C25: 訪問介護 | F25: 人 | H25: 人 | J25: 人 | K25: 0 | L25: 人 | M25: 0 | N25: 人
C26: 介護予防訪問介護 | F26: 人 | H26: 人 | J26: 人 | K26: 0 | L26: 人 | M26: 0 | N26: 人
C27: 居宅介護 | F27: 人 | H27: 人 | J27: 人 | K27: 0 | L27: 人 | M27: 0 | N27: 人
C28: 重度訪問介護 | F28: 人 | H28: 人 | J28: 人 | K28: 0 | L28: 人 | M28: 0 | N28: 人
C29: 同行援護 | F29: 人 | H29: 人 | J29: 人 | K29: 0 | L29: 人 | M29: 0 | N29: 人
C30: 行動援護 | F30: 人 | H30: 人 | J30: 人 | K30: 0 | L30: 人 | M30: 0 | N30: 人
C31: 移動支援 | F31: 人 | H31: 人 | J31: 人 | K31: 0 | L31: 人 | M31: 0 | N31: 人
B33: ※サービス提供責任者が各指定サービスを兼務する場合（各事業を一体に運営する場合に限る）、「サービス提供時間」は 各事業それぞれに記載し、「実利用者数」「実従業者数」は、いずれも居宅介護の欄に各サービスの合計を記載すること。
B34: ※サービス提供責任者を事業ごとに別に配置する場合（障害と介護で別のサ責を配置している場合等）は、 「サービス提供時間」「実利用者数」「実従業者数」いずれもサ責の配置事業ごと別に記載すること。
B35: ※「実利用者数」について、上記のサービスを複数利用する利用者は、二重計上せず、 いずれかひとつのサービスに記載すること。ただし、上記の場合を除く。
B36: ※居宅介護のうち通院等乗降介助のみを利用した利用者については、１人あたり0.1人として計算すること。

Sheet （旧）P5-1 (hidden)
B1: ４ 障害福祉サービス費の請求状況
B3: (1) | C3: 居宅介護 | E3: =【共通】!J9&【共通】!L4&【共通】!M4 -> 令和 8年 | F3: =IFERROR(【共通】!N4-1&【共通】!O4,"") -> 5月
B4: 身体介護中心 | E4: ～30分 | G4: 0 | H4: 30分～1時間 | J4: 0 | K4: 1時間～1時間30分 | L4: 0 | M4: 1時間30分～2時間 | N4: 0 | O4: 2時間～2時間30分 | Q4: 0 | R4: 2時間30分～3時間 | T4: 0 | U4: 3時間～ | W4: 0
B5: 家事援助中心 | E5: ～30分 | G5: 0 | H5: 30分～45分 | J5: 0 | K5: 45分～1時間 | L5: 0 | M5: 1時間～1時間15分 | N5: 0 | O5: 1時間15分～1時間30分 | Q5: 0 | R5: 1時間30分～ | T5: 0
B6: 通院等介助 | C6: 身体介護を伴う | E6: ～30分 | G6: 0 | H6: 30分～1時間 | J6: 0 | K6: 1時間～1時間30分 | L6: 0 | M6: 1時間30分～2時間 | N6: 0 | O6: 2時間～2時間30分 | Q6: 0 | R6: 2時間30分～3時間 | T6: 0 | U6: 3時間～ | W6: 0
C7: 身体介護を伴わない | E7: ～30分 | G7: 0 | H7: 30分～1時間 | J7: 0 | K7: 1時間～1時間30分 | L7: 0 | M7: 1時間30分～ | N7: 0
E9: 算定回数 | G9: 実人員 | R9: 算定回数 | T9: 処遇改善加算等
B10: 通院等乗降介助 | E10: 0 | G10: 0 | I10: 2人の居宅介護従業者による支援に伴う算定 （基本部分×200％） | R10: 0 | T10: 処遇改善加算等
B11: 初回加算 | E11: 0 | G11: 0 | I11: 夜間又は早朝の支援に伴う加算 （＋基本部分×25％） | R11: 0 | T11: 特定処遇改善加算
B12: 利用者負担上限額管理加算 | E12: 0 | G12: 0 | I12: 深夜の支援に伴う加算 （＋基本部分×50％） | R12: 0 | T12: ベースアップ等支援加算
B13: 福祉専門職員等連携加算 | E13: 0 | G13: 0 | I13: 基礎研修修了者による支援に伴う減算 （基本部分×70％ or ×90％） | R13: 0
B14: 緊急時対応加算 | E14: 0 | G14: 0 | I14: 重度訪問介護研修修了者による支援に伴う算定 （重度訪問介護の単価 or 基本部分×90％） | R14: 0 | T14: 【居宅介護】
B15: 特別地域加算 | E15: 0 | G15: 0 | I15: 初任者研修課程修了者等が計画作成をしている場合の減算 （基本部分×70％） | R15: 0 | T15: =$F$3&"分 請求額" -> 5月分 請求額 | V15: 0
B16: 喀痰吸引等支援体制加算 | E16: 0 | G16: 0 | I16: 同一敷地内建物に居住する利用者への支援に伴う減算 （基本部分×90％） | R16: 0
B17: 身体拘束廃止未実施減算 | E17: 0 | I17: 利用者のうち同一建物に居住する者が20人以上の場合の減算 （基本部分×90％） | R17: 0
B18: 特定事業所加算 | E18: 0 | I18: 利用者のうち同一建物に居住する者が50人以上の場合の減算 （基本部分×85％） | R18: 0
B21: (2) | C21: 重度訪問介護 | E21: =E3&" "&F3 -> 令和 8年 5月
B22: 重度訪問介護 | E22: ～1時間 | G22: 0 | H22: 1時間～1時間30分 | J22: 0 | K22: 1時間30分～2時間 | L22: 0 | M22: 2時間～2時間30分 | N22: 0 | O22: 2時間30分～3時間 | Q22: 0 | R22: 3時間～3時間30分 | T22: 0
E23: 3時間30分～4時間 | G23: 0 | H23: 4時間～8時間 | J23: 0 | K23: 8時間～12時間 | L23: 0 | M23: 12時間～16時間 | N23: 0 | O23: 16時間～20時間 | Q23: 0 | R23: 20時間～24時間 | T23: 0
B24: 移動介護加算 | E24: ～1時間 | G24: 0 | H24: 1時間～1時間30分 | J24: 0 | K24: 1時間30分～2時間 | L24: 0 | M24: 2時間～2時間30分 | N24: 0 | O24: 2時間30分～3時間 | Q24: 0 | R24: 3時間～ | T24: 0
E26: 算定回数 | G26: 実人員 | O26: 算定回数 | Q26: 処遇改善加算等
B27: 初回加算 | E27: 0 | G27: 0 | I27: 重度障害者への支援に伴う加算 （＋基本部分×15％） | O27: 0 | Q27: 処遇改善加算等
B28: 利用者負担上限額管理加算 | E28: 0 | G28: 0 | I28: 障害支援区分6に該当する利用者への支援に対する加算 （＋基本部分×8.5％） | O28: 0 | Q28: 特定処遇改善加算
B29: 行動障害支援連携加算 | E29: 0 | G29: 0 | Q29: ベースアップ等支援加算
B30: 緊急時対応加算 | E30: 0 | G30: 0 | I30: 2人の居宅介護従業者による支援に伴う算定 （基本部分×200％） | O30: 0
B31: 特別地域加算 | E31: 0 | G31: 0 | I31: 2人の居宅介護従業者による支援のうち熟練者の同行に伴う算定 （基本部分×185％） | O31: 0 | Q31: 【重度訪問介護】
B32: 喀痰吸引等支援体制加算 | E32: 0 | G32: 0 | Q32: =$F$3&"分 請求額" -> 5月分 請求額 | S32: 0
B33: 移動介護緊急時支援加算 | E33: 0 | G33: 0 | I33: 夜間又は早朝の支援に伴う加算 （＋基本部分×25％） | O33: 0
B34: 身体拘束廃止未実施減算 | E34: 0 | I34: 深夜の支援に伴う加算 （＋基本部分×50％） | O34: 0
B35: 特定事業所加算 | E35: 0 | I35: 90日以上利用減算 （基本部分×80％） | O35: 0
E42: Ⅰ型
E43: Ⅱ型
E44: Ⅲ型
E45: Ⅳ型
E46: なし
E48: Ⅰ型
E49: Ⅱ型
E50: Ⅲ型
E51: なし

Sheet （旧）P5-2 (hidden)
B2: (3) | C2: 同行援護 | E2: ='（旧）P5-1'!E$21:F$21 -> 令和 8年 5月
B3: 同行援護 | E3: ～30分 | G3: 0 | H3: 30分～1時間 | J3: 0 | K3: 1時間～1時間30分 | M3: 0 | N3: 1時間30分～2時間 | P3: 0
E4: 2時間～2時間30分 | G4: 0 | H4: 2時間30分～3時間 | J4: 0 | K4: 3時間～ | M4: 0
E6: 算定回数 | G6: 実人員 | S6: 算定回数 | U6: 処遇改善加算等
B7: 初回加算 | E7: 0 | G7: 0 | I7: 2人の同行援護従業者による支援に伴う算定 （基本部分×200％） | S7: 0 | U7: 処遇改善加算等
B8: 利用者負担上限額管理加算 | E8: 0 | G8: 0 | I8: 夜間又は早朝の支援に伴う加算 （＋基本部分×25％） | S8: 0 | U8: 特定処遇改善加算
B9: 緊急時対応加算 | E9: 0 | G9: 0 | I9: 深夜の支援に伴う加算 （＋基本部分×50％） | S9: 0 | U9: ベースアップ等支援加算
B10: 特別地域加算 | E10: 0 | G10: 0 | I10: 盲ろう者に対する盲ろう者向け通訳通訳・介助員による支援に伴う加算 （＋基本部分×25％） | S10: 0
B11: 喀痰吸引等支援体制加算 | E11: 0 | G11: 0 | I11: 障害支援区分3に該当する利用者への支援に対する加算 （＋基本部分×20％） | S11: 0 | U11: 【同行援護】
B12: 身体拘束廃止未実施減算 | E12: 0 | I12: 障害支援区分4に該当する利用者への支援に対する加算 （＋基本部分×40％） | S12: 0 | U12: ='（旧）P5-1'!$F$3&"分 請求額" -> 5月分 請求額 | W12: 0
B13: 特定事業所加算 | E13: 0 | I13: 基礎研修修了者による支援に伴う減算 （基本部分×90％） | S13: 0
I14: 盲ろう者向け通訳通訳・介助員による支援に伴う減算 （基本部分×90％） | S14: 0
B17: (4) | C17: 行動援護 | E17: ='（旧）P5-1'!E$21:F$21 -> 令和 8年 5月
B18: 行動援護 | E18: ～30分 | G18: 0 | H18: 30分～1時間 | J18: 0 | K18: 1時間～1時間30分 | M18: 0 | N18: 1時間30分～2時間 | P18: 0 | Q18: 2時間～2時間30分 | S18: 0 | T18: 2時間30分～3時間 | V18: 0
E19: 3時間～3時間30分 | G19: 0 | H19: 3時間30分～4時間 | J19: 0 | K19: 4時間～4時間30分 | M19: 0 | N19: 4時間30分～5時間 | P19: 0 | Q19: 5時間～5時間30分 | S19: 0 | T19: 5時間30分～6時間 | V19: 0
E20: 6時間～6時間30分 | G20: 0 | H20: 6時間30分～7時間 | J20: 0 | K20: 7時間～7時間30分 | M20: 0 | N20: 7時間30分～ | P20: 0
E22: 算定回数 | G22: 実人員 | Q22: 算定回数 | S22: 処遇改善加算等
B23: 初回加算 | E23: 0 | G23: 0 | I23: 2人の同行援護従業者による支援に伴う算定 （基本部分×200％） | Q23: 0 | S23: 処遇改善加算等
B24: 利用者負担上限額管理加算 | E24: 0 | G24: 0 | I24: 支援計画シートが未作成の場合の減算 （基本部分×95％） | Q24: 0 | S24: 特定処遇改善加算
B25: 行動障害支援連携加算 | E25: 0 | G25: 0 | S25: ベースアップ等支援加算
B26: 緊急時対応加算 | E26: 0 | G26: 0
B27: 特別地域加算 | E27: 0 | G27: 0 | S27: 【行動援護】
B28: 喀痰吸引等支援体制加算 | E28: 0 | G28: 0 | S28: ='（旧）P5-1'!$F$3&"分 請求額" -> 5月分 請求額 | U28: 0
B29: 特定事業所加算 | D29: Ⅰ型 | E29: 0
E34: Ⅰ型
E35: Ⅱ型
E36: Ⅲ型
E37: Ⅳ型
E38: なし
E40: Ⅰ型
E41: Ⅱ型
E42: Ⅲ型
E43: なし

Sheet P4
B1: ４ （一）体制要件 ア 研修の実施状況 ※特定事業所加算Ⅰ/Ⅱ/Ⅲを算定している場合のみ | H1: =" １ / "&K1 -> １ / 1 | K1: =IF(C65<>"",4,IF(C44<>"",3,IF(C23<>"",2,1))) -> 1
C3: 職 種 | D3: 氏 名 | E3: 雇用 形態 | F3: 従業者（サービス提供責任者）ごとの研修計画
F4: 研修の目標 | G4: 内容 | H4: 研修期間・実施時期 | K4: 常勤／専従
B5: 例 | C5: 管理者兼サービス提供責任者 | D5: ○○ ○○ | E5: 正 | F5: 利用者のニーズを把握し、自立支援に資する適切な居宅介護計画書を作成できる。 | G5: アセスメントの視点と目標設定の具体化について、課題分析の演習 | H5: 2025.6.1～2025.7.1 | K5: 常勤／兼務
B6: 例 | C6: ヘルパー | D6: □□ □□ | E6: 正 | F6: 利用者の能力を活かした「自立支援型」の家事援助ができる。 | G6: 調理・掃除における安全確保と、利用者との共同作業のための工夫 | H6: 2025.6.1～2025.7.1 | K6: 非常勤／専従
B7: 例 | C7: 登録ヘルパー | D7: △△ △△ | E7: 登 | F7: 虐待防止の研修 | G7: 虐待の事例検討、身体拘束の適正化について | H7: 2025.10.1～2025.11.1 | K7: 非常勤／兼務
B8: 1 | K8: 同事業所
B9: =B8+1 -> 2 | K9: 同法人 他事業所
B10: =B9+1 -> 3 | K10: 他法人
B11: 4 | K11: -
B12: =B11+1 -> 5 | K12: 1年未満
B13: 6 | K13: 1年以上 3年未満
B14: 7 | K14: 3年以上 5年未満
B15: 8 | K15: 5年以上
B16: 9
B17: 10
B18: 11
B19: 12
B20: 13
B21: 14
B22: 15
B23: =B22+1 -> 16
B24: =B23+1 -> 17
B25: =B24+1 -> 18
B26: 19
B27: 20
B28: 21
B29: 22
B30: 23
B31: 24
B32: 25
B33: 26
B34: 27
B35: 28
B36: 29
B37: 30
B38: 31
B39: 32
B40: 33
B41: 34
B42: 35
B43: 36
B44: =B43+1 -> 37
B45: =B44+1 -> 38
B46: =B45+1 -> 39
B47: 40
B48: 41
B49: 42
B50: 43
B51: 44
B52: 45
B53: 46
B54: 47
B55: 48
B56: 49
B57: 50
B58: 51
B59: 52
B60: 53
B61: 54
B62: 55
B63: 56
B64: 57
B65: =B64+1 -> 58
B66: =B65+1 -> 59
B67: =B66+1 -> 60
B68: 61
B69: 62
B70: 63
B71: 64
B72: 65
B73: 66
B74: 67
B75: 68
B76: 69
B77: 70
B78: 71
B79: 72
B80: 73
B81: 74
B82: 75
B83: 76
B84: 77
B85: 78

Sheet P5-1
B2: ５－１ （居宅介護） 居宅介護等計画の作成状況・支給決定内容等 | Q2: =" 1 / "&COUNTA(C$5,C$37,C$68,C$99,C$130,C$161) -> 1 / 1
B3: No. | C3: 利用者氏名 | D3: 性別 | E3: 年齢 | F3: 居住地 | G3: 障害 種別 | H3: 障害 支援 区分 | I3: 自己 負担 | J3: 利用開始時期 （契約時期） | K3: 利用頻度 | M3: 2人 介助 | N3: 併用 サービス | O3: 居宅介護計画の作成等 ※新規・変更問わず直近のもの
K4: 身体介護 | L4: 家事援助 | O4: アセスメントの 実 施 日 | P4: 居宅介護計画の 作 成 日 | Q4: 利用者の 同 意 日
B5: 例 | C5: 浜松 太郎 | D5: 男 | E5: 44 | F5: 中区 | G5: 知的 | H5: 3 | I5: ○ | J5: 半年～1年以内 | K5: 週2回 | L5: 週4回 | M5: ○ | N5: 生活介護 | O5: 2023-04-01 | P5: 2023-04-10 | Q5: 2023-04-12 | AE5: 半年以内
B6: 1 | AE6: 半年～1年以内
B7: =B6+1 -> 2 | AE7: 1年～3年以内
B8: =B7+1 -> 3 | AE8: 3年以上
B9: 4
B10: 5
B11: 6
B12: 7
B13: 8
B14: 9
B15: 10
B16: 11
B17: 12
B18: 13
B19: 14
B20: 15
B21: 16
B22: 17
B23: 18
B24: 19
B25: 20
B26: 21
B27: 22
B28: 23
B29: 24
B30: 25
B33: ５－１ （居宅介護） 居宅介護等計画の作成状況・支給決定内容等 | Q33: =" 2 / "&COUNTA(C$5,C$37,C$68,C$99,C$130,C$161) -> 2 / 1
B34: No. | C34: 利用者氏名 | D34: 性別 | E34: 年齢 | F34: 居住地 | G34: 障害 種別 | H34: 障害 支援 区分 | I34: 自己 負担 | J34: 利用開始時期 （契約時期） | K34: 利用頻度 | M34: 2人 介助 | N34: 併用 サービス | O34: 居宅介護計画の作成等 ※新規・変更問わず直近のもの
K35: 身体介護 | L35: 家事援助 | O35: アセスメントの 実 施 日 | P35: 居宅介護計画の 作 成 日 | Q35: 利用者の 同 意 日
B36: 例 | C36: 浜松 太郎 | D36: 男 | E36: 44 | F36: 中区 | G36: 知的 | H36: 3 | I36: ○ | J36: 半年～1年以内 | K36: 週2回 | L36: 週4回 | M36: ○ | N36: 生活介護 | O36: 2023-04-01 | P36: 2023-04-10 | Q36: 2023-04-12 | AE36: 半年以内
B37: =B30+1 -> 26 | AE37: 半年～1年以内
B38: =B37+1 -> 27 | AE38: 1年～3年以内
B39: =B38+1 -> 28 | AE39: 3年以上
B40: 29
B41: 30
B42: 31
B43: 32
B44: 33
B45: 34
B46: 35
B47: 36
B48: 37
B49: 38
B50: 39
B51: 40
B52: 41
B53: 42
B54: 43
B55: 44
B56: 45
B57: 46
B58: 47
B59: 48
B60: 49
B61: 50
B64: ５－１ （居宅介護） 居宅介護等計画の作成状況・支給決定内容等 | Q64: =" 3 / "&COUNTA(C$5,C$37,C$68,C$99,C$130,C$161) -> 3 / 1
B65: No. | C65: 利用者氏名 | D65: 性別 | E65: 年齢 | F65: 居住地 | G65: 障害 種別 | H65: 障害 支援 区分 | I65: 自己 負担 | J65: 利用開始時期 （契約時期） | K65: 利用頻度 | M65: 2人 介助 | N65: 併用 サービス | O65: 居宅介護計画の作成等 ※新規・変更問わず直近のもの
K66: 身体介護 | L66: 家事援助 | O66: アセスメントの 実 施 日 | P66: 居宅介護計画の 作 成 日 | Q66: 利用者の 同 意 日
B67: 例 | C67: 浜松 太郎 | D67: 男 | E67: 44 | F67: 中区 | G67: 知的 | H67: 3 | I67: ○ | J67: 半年～1年以内 | K67: 週2回 | L67: 週4回 | M67: ○ | N67: 生活介護 | O67: 2023-04-01 | P67: 2023-04-10 | Q67: 2023-04-12 | AE67: 半年以内
B68: =B61+1 -> 51 | AE68: 半年～1年以内
B69: =B68+1 -> 52 | AE69: 1年～3年以内
B70: =B69+1 -> 53 | AE70: 3年以上
B71: 54
B72: 55
B73: 56
B74: 57
B75: 58
B76: 59
B77: 60
B78: 61
B79: 62
B80: 63
B81: 64
B82: 65
B83: 66
B84: 67
B85: 68
B86: 69
B87: 70
B88: 71
B89: 72
B90: 73
B91: 74
B92: 75
B95: ５－１ （居宅介護） 居宅介護等計画の作成状況・支給決定内容等 | Q95: =" 4 / "&COUNTA(C$5,C$37,C$68,C$99,C$130,C$161) -> 4 / 1
B96: No. | C96: 利用者氏名 | D96: 性別 | E96: 年齢 | F96: 居住地 | G96: 障害 種別 | H96: 障害 支援 区分 | I96: 自己 負担 | J96: 利用開始時期 （契約時期） | K96: 利用頻度 | M96: 2人 介助 | N96: 併用 サービス | O96: 居宅介護計画の作成等 ※新規・変更問わず直近のもの
K97: 身体介護 | L97: 家事援助 | O97: アセスメントの 実 施 日 | P97: 居宅介護計画の 作 成 日 | Q97: 利用者の 同 意 日
B98: 例 | C98: 浜松 太郎 | D98: 男 | E98: 44 | F98: 中区 | G98: 知的 | H98: 3 | I98: ○ | J98: 半年～1年以内 | K98: 週2回 | L98: 週4回 | M98: ○ | N98: 生活介護 | O98: 2023-04-01 | P98: 2023-04-10 | Q98: 2023-04-12 | AE98: 半年以内
B99: =B92+1 -> 76 | AE99: 半年～1年以内
B100: =B99+1 -> 77 | AE100: 1年～3年以内
B101: =B100+1 -> 78 | AE101: 3年以上
B102: 79
B103: 80
B104: 81
B105: 82
B106: 83
B107: 84
B108: 85
B109: 86
B110: 87
B111: 88
B112: 89
B113: 90
B114: 91
B115: 92
B116: 93
B117: 94
B118: 95
B119: 96
B120: 97
B121: 98
B122: 99
B123: 100
B126: ５－１ （居宅介護） 居宅介護等計画の作成状況・支給決定内容等 | Q126: =" 5 / "&COUNTA(C$5,C$37,C$68,C$99,C$130,C$161) -> 5 / 1
B127: No. | C127: 利用者氏名 | D127: 性別 | E127: 年齢 | F127: 居住地 | G127: 障害 種別 | H127: 障害 支援 区分 | I127: 自己 負担 | J127: 利用開始時期 （契約時期） | K127: 利用頻度 | M127: 2人 介助 | N127: 併用 サービス | O127: 居宅介護計画の作成等 ※新規・変更問わず直近のもの
K128: 身体介護 | L128: 家事援助 | O128: アセスメントの 実 施 日 | P128: 居宅介護計画の 作 成 日 | Q128: 利用者の 同 意 日
B129: 例 | C129: 浜松 太郎 | D129: 男 | E129: 44 | F129: 中区 | G129: 知的 | H129: 3 | I129: ○ | J129: 半年～1年以内 | K129: 週2回 | L129: 週4回 | M129: ○ | N129: 生活介護 | O129: 2023-04-01 | P129: 2023-04-10 | Q129: 2023-04-12 | AE129: 半年以内
B130: =B123+1 -> 101 | AE130: 半年～1年以内
B131: =B130+1 -> 102 | AE131: 1年～3年以内
B132: =B131+1 -> 103 | AE132: 3年以上
B133: 104
B134: 105
B135: 106
B136: 107
B137: 108
B138: 109
B139: 110
B140: 111
B141: 112
B142: 113
B143: 114
B144: 115
B145: 116
B146: 117
B147: 118
B148: 119
B149: 120
B150: 121
B151: 122
B152: 123
B153: 124
B154: 125
B157: ５－１ （居宅介護） 居宅介護等計画の作成状況・支給決定内容等 | Q157: =" 6 / "&COUNTA(C$5,C$37,C$68,C$99,C$130,C$161) -> 6 / 1
B158: No. | C158: 利用者氏名 | D158: 性別 | E158: 年齢 | F158: 居住地 | G158: 障害 種別 | H158: 障害 支援 区分 | I158: 自己 負担 | J158: 利用開始時期 （契約時期） | K158: 利用頻度 | M158: 2人 介助 | N158: 併用 サービス | O158: 居宅介護計画の作成等 ※新規・変更問わず直近のもの
K159: 身体介護 | L159: 家事援助 | O159: アセスメントの 実 施 日 | P159: 居宅介護計画の 作 成 日 | Q159: 利用者の 同 意 日
B160: 例 | C160: 浜松 太郎 | D160: 男 | E160: 44 | F160: 中区 | G160: 知的 | H160: 3 | I160: ○ | J160: 半年～1年以内 | K160: 週2回 | L160: 週4回 | M160: ○ | N160: 生活介護 | O160: 2023-04-01 | P160: 2023-04-10 | Q160: 2023-04-12 | AE160: 半年以内
B161: =B154+1 -> 126 | AE161: 半年～1年以内
B162: =B161+1 -> 127 | AE162: 1年～3年以内
B163: =B162+1 -> 128 | AE163: 3年以上
B164: 129
B165: 130
B166: 131
B167: 132
B168: 133
B169: 134
B170: 135
B171: 136
B172: 137
B173: 138
B174: 139
B175: 140
B176: 141
B177: 142
B178: 143
B179: 144
B180: 145
B181: 146
B182: 147
B183: 148
B184: 149
B185: 150

Sheet P5-2
B2: ５－２ （重度訪問介護） 居宅介護等計画の作成状況・支給決定内容等 | Q2: =" 1 / "&COUNTA(C$5,C$37,C$68,C$99,C$130,C$161) -> 1 / 1
B3: No. | C3: 利用者氏名 | D3: 性別 | E3: 年齢 | F3: 居住地 | G3: 障害 種別 | H3: 障害 支援 区分 | I3: 自己 負担 | J3: 利用開始時期 （契約時期） | K3: 利用頻度 | M3: 2人 介助 | N3: 併用 サービス | O3: 居宅介護計画の作成等 ※新規・変更問わず直近のもの
K4: 身体介護 | L4: 家事援助 | O4: アセスメントの 実 施 日 | P4: 居宅介護計画の 作 成 日 | Q4: 利用者の 同 意 日
B5: 例 | C5: 浜松 太郎 | D5: 男 | E5: 44 | F5: 中区 | G5: 知的 | H5: 3 | I5: ○ | J5: 半年～1年以内 | K5: 週2回 | L5: 週4回 | M5: ○ | N5: 生活介護 | O5: 2023-04-01 | P5: 2023-04-10 | Q5: 2023-04-12 | AE5: 半年以内
B6: 1 | AE6: 半年～1年以内
B7: =B6+1 -> 2 | AE7: 1年～3年以内
B8: =B7+1 -> 3 | AE8: 3年以上
B9: 4
B10: 5
B11: 6
B12: 7
B13: 8
B14: 9
B15: 10
B16: 11
B17: 12
B18: 13
B19: 14
B20: 15
B21: 16
B22: 17
B23: 18
B24: 19
B25: 20
B26: 21
B27: 22
B28: 23
B29: 24
B30: 25
B33: ５－２ （重度訪問介護） 居宅介護等計画の作成状況・支給決定内容等 | Q33: =" 2 / "&COUNTA(C$5,C$37,C$68,C$99,C$130,C$161) -> 2 / 1
B34: No. | C34: 利用者氏名 | D34: 性別 | E34: 年齢 | F34: 居住地 | G34: 障害 種別 | H34: 障害 支援 区分 | I34: 自己 負担 | J34: 利用開始時期 （契約時期） | K34: 利用頻度 | M34: 2人 介助 | N34: 併用 サービス | O34: 居宅介護計画の作成等 ※新規・変更問わず直近のもの
K35: 身体介護 | L35: 家事援助 | O35: アセスメントの 実 施 日 | P35: 居宅介護計画の 作 成 日 | Q35: 利用者の 同 意 日
B36: 例 | C36: 浜松 太郎 | D36: 男 | E36: 44 | F36: 中区 | G36: 知的 | H36: 3 | I36: ○ | J36: 半年～1年以内 | K36: 週2回 | L36: 週4回 | M36: ○ | N36: 生活介護 | O36: 2023-04-01 | P36: 2023-04-10 | Q36: 2023-04-12 | AE36: 半年以内
B37: =B30+1 -> 26 | AE37: 半年～1年以内
B38: =B37+1 -> 27 | AE38: 1年～3年以内
B39: =B38+1 -> 28 | AE39: 3年以上
B40: 29
B41: 30
B42: 31
B43: 32
B44: 33
B45: 34
B46: 35
B47: 36
B48: 37
B49: 38
B50: 39
B51: 40
B52: 41
B53: 42
B54: 43
B55: 44
B56: 45
B57: 46
B58: 47
B59: 48
B60: 49
B61: 50
B64: ５－２ （重度訪問介護） 居宅介護等計画の作成状況・支給決定内容等 | Q64: =" 3 / "&COUNTA(C$5,C$37,C$68,C$99,C$130,C$161) -> 3 / 1
B65: No. | C65: 利用者氏名 | D65: 性別 | E65: 年齢 | F65: 居住地 | G65: 障害 種別 | H65: 障害 支援 区分 | I65: 自己 負担 | J65: 利用開始時期 （契約時期） | K65: 利用頻度 | M65: 2人 介助 | N65: 併用 サービス | O65: 居宅介護計画の作成等 ※新規・変更問わず直近のもの
K66: 身体介護 | L66: 家事援助 | O66: アセスメントの 実 施 日 | P66: 居宅介護計画の 作 成 日 | Q66: 利用者の 同 意 日
B67: 例 | C67: 浜松 太郎 | D67: 男 | E67: 44 | F67: 中区 | G67: 知的 | H67: 3 | I67: ○ | J67: 半年～1年以内 | K67: 週2回 | L67: 週4回 | M67: ○ | N67: 生活介護 | O67: 2023-04-01 | P67: 2023-04-10 | Q67: 2023-04-12 | AE67: 半年以内
B68: =B61+1 -> 51 | AE68: 半年～1年以内
B69: =B68+1 -> 52 | AE69: 1年～3年以内
B70: =B69+1 -> 53 | AE70: 3年以上
B71: 54
B72: 55
B73: 56
B74: 57
B75: 58
B76: 59
B77: 60
B78: 61
B79: 62
B80: 63
B81: 64
B82: 65
B83: 66
B84: 67
B85: 68
B86: 69
B87: 70
B88: 71
B89: 72
B90: 73
B91: 74
B92: 75
B95: ５－２ （重度訪問介護） 居宅介護等計画の作成状況・支給決定内容等 | Q95: =" 4 / "&COUNTA(C$5,C$37,C$68,C$99,C$130,C$161) -> 4 / 1
B96: No. | C96: 利用者氏名 | D96: 性別 | E96: 年齢 | F96: 居住地 | G96: 障害 種別 | H96: 障害 支援 区分 | I96: 自己 負担 | J96: 利用開始時期 （契約時期） | K96: 利用頻度 | M96: 2人 介助 | N96: 併用 サービス | O96: 居宅介護計画の作成等 ※新規・変更問わず直近のもの
K97: 身体介護 | L97: 家事援助 | O97: アセスメントの 実 施 日 | P97: 居宅介護計画の 作 成 日 | Q97: 利用者の 同 意 日
B98: 例 | C98: 浜松 太郎 | D98: 男 | E98: 44 | F98: 中区 | G98: 知的 | H98: 3 | I98: ○ | J98: 半年～1年以内 | K98: 週2回 | L98: 週4回 | M98: ○ | N98: 生活介護 | O98: 2023-04-01 | P98: 2023-04-10 | Q98: 2023-04-12 | AE98: 半年以内
B99: =B92+1 -> 76 | AE99: 半年～1年以内
B100: =B99+1 -> 77 | AE100: 1年～3年以内
B101: =B100+1 -> 78 | AE101: 3年以上
B102: 79
B103: 80
B104: 81
B105: 82
B106: 83
B107: 84
B108: 85
B109: 86
B110: 87
B111: 88
B112: 89
B113: 90
B114: 91
B115: 92
B116: 93
B117: 94
B118: 95
B119: 96
B120: 97
B121: 98
B122: 99
B123: 100
B126: ５－２ （重度訪問介護） 居宅介護等計画の作成状況・支給決定内容等 | Q126: =" 5 / "&COUNTA(C$5,C$37,C$68,C$99,C$130,C$161) -> 5 / 1
B127: No. | C127: 利用者氏名 | D127: 性別 | E127: 年齢 | F127: 居住地 | G127: 障害 種別 | H127: 障害 支援 区分 | I127: 自己 負担 | J127: 利用開始時期 （契約時期） | K127: 利用頻度 | M127: 2人 介助 | N127: 併用 サービス | O127: 居宅介護計画の作成等 ※新規・変更問わず直近のもの
K128: 身体介護 | L128: 家事援助 | O128: アセスメントの 実 施 日 | P128: 居宅介護計画の 作 成 日 | Q128: 利用者の 同 意 日
B129: 例 | C129: 浜松 太郎 | D129: 男 | E129: 44 | F129: 中区 | G129: 知的 | H129: 3 | I129: ○ | J129: 半年～1年以内 | K129: 週2回 | L129: 週4回 | M129: ○ | N129: 生活介護 | O129: 2023-04-01 | P129: 2023-04-10 | Q129: 2023-04-12 | AE129: 半年以内
B130: =B123+1 -> 101 | AE130: 半年～1年以内
B131: =B130+1 -> 102 | AE131: 1年～3年以内
B132: =B131+1 -> 103 | AE132: 3年以上
B133: 104
B134: 105
B135: 106
B136: 107
B137: 108
B138: 109
B139: 110
B140: 111
B141: 112
B142: 113
B143: 114
B144: 115
B145: 116
B146: 117
B147: 118
B148: 119
B149: 120
B150: 121
B151: 122
B152: 123
B153: 124
B154: 125
B157: ５－２ （重度訪問介護） 居宅介護等計画の作成状況・支給決定内容等 | Q157: =" 6 / "&COUNTA(C$5,C$37,C$68,C$99,C$130,C$161) -> 6 / 1
B158: No. | C158: 利用者氏名 | D158: 性別 | E158: 年齢 | F158: 居住地 | G158: 障害 種別 | H158: 障害 支援 区分 | I158: 自己 負担 | J158: 利用開始時期 （契約時期） | K158: 利用頻度 | M158: 2人 介助 | N158: 併用 サービス | O158: 居宅介護計画の作成等 ※新規・変更問わず直近のもの
K159: 身体介護 | L159: 家事援助 | O159: アセスメントの 実 施 日 | P159: 居宅介護計画の 作 成 日 | Q159: 利用者の 同 意 日
B160: 例 | C160: 浜松 太郎 | D160: 男 | E160: 44 | F160: 中区 | G160: 知的 | H160: 3 | I160: ○ | J160: 半年～1年以内 | K160: 週2回 | L160: 週4回 | M160: ○ | N160: 生活介護 | O160: 2023-04-01 | P160: 2023-04-10 | Q160: 2023-04-12 | AE160: 半年以内
B161: =B154+1 -> 126 | AE161: 半年～1年以内
B162: =B161+1 -> 127 | AE162: 1年～3年以内
B163: =B162+1 -> 128 | AE163: 3年以上
B164: 129
B165: 130
B166: 131
B167: 132
B168: 133
B169: 134
B170: 135
B171: 136
B172: 137
B173: 138
B174: 139
B175: 140
B176: 141
B177: 142
B178: 143
B179: 144
B180: 145
B181: 146
B182: 147
B183: 148
B184: 149
B185: 150

Sheet P5-3
B2: ５－３ （行動援護） 居宅介護等計画の作成状況・支給決定内容等 | Q2: =" 1 / "&COUNTA(C$5,C$37,C$68,C$99,C$130,C$161) -> 1 / 1
B3: No. | C3: 利用者氏名 | D3: 性別 | E3: 年齢 | F3: 居住地 | G3: 障害 種別 | H3: 障害 支援 区分 | I3: 自己 負担 | J3: 利用開始時期 （契約時期） | K3: 利用頻度 | M3: 2人 介助 | N3: 併用 サービス | O3: 居宅介護計画の作成等 ※新規・変更問わず直近のもの
K4: 身体介護 | L4: 家事援助 | O4: アセスメントの 実 施 日 | P4: 居宅介護計画の 作 成 日 | Q4: 利用者の 同 意 日
B5: 例 | C5: 浜松 太郎 | D5: 男 | E5: 44 | F5: 中区 | G5: 知的 | H5: 3 | I5: ○ | J5: 半年～1年以内 | K5: 週2回 | L5: 週4回 | M5: ○ | N5: 生活介護 | O5: 2023-04-01 | P5: 2023-04-10 | Q5: 2023-04-12 | AE5: 半年以内
B6: 1 | AE6: 半年～1年以内
B7: =B6+1 -> 2 | AE7: 1年～3年以内
B8: =B7+1 -> 3 | AE8: 3年以上
B9: 4
B10: 5
B11: 6
B12: 7
B13: 8
B14: 9
B15: 10
B16: 11
B17: 12
B18: 13
B19: 14
B20: 15
B21: 16
B22: 17
B23: 18
B24: 19
B25: 20
B26: 21
B27: 22
B28: 23
B29: 24
B30: 25
B33: ５－３ （行動援護） 居宅介護等計画の作成状況・支給決定内容等 | Q33: =" 2 / "&COUNTA(C$5,C$37,C$68,C$99,C$130,C$161) -> 2 / 1
B34: No. | C34: 利用者氏名 | D34: 性別 | E34: 年齢 | F34: 居住地 | G34: 障害 種別 | H34: 障害 支援 区分 | I34: 自己 負担 | J34: 利用開始時期 （契約時期） | K34: 利用頻度 | M34: 2人 介助 | N34: 併用 サービス | O34: 居宅介護計画の作成等 ※新規・変更問わず直近のもの
K35: 身体介護 | L35: 家事援助 | O35: アセスメントの 実 施 日 | P35: 居宅介護計画の 作 成 日 | Q35: 利用者の 同 意 日
B36: 例 | C36: 浜松 太郎 | D36: 男 | E36: 44 | F36: 中区 | G36: 知的 | H36: 3 | I36: ○ | J36: 半年～1年以内 | K36: 週2回 | L36: 週4回 | M36: ○ | N36: 生活介護 | O36: 2023-04-01 | P36: 2023-04-10 | Q36: 2023-04-12 | AE36: 半年以内
B37: =B30+1 -> 26 | AE37: 半年～1年以内
B38: =B37+1 -> 27 | AE38: 1年～3年以内
B39: =B38+1 -> 28 | AE39: 3年以上
B40: 29
B41: 30
B42: 31
B43: 32
B44: 33
B45: 34
B46: 35
B47: 36
B48: 37
B49: 38
B50: 39
B51: 40
B52: 41
B53: 42
B54: 43
B55: 44
B56: 45
B57: 46
B58: 47
B59: 48
B60: 49
B61: 50
B64: ５－３ （行動援護） 居宅介護等計画の作成状況・支給決定内容等 | Q64: =" 3 / "&COUNTA(C$5,C$37,C$68,C$99,C$130,C$161) -> 3 / 1
B65: No. | C65: 利用者氏名 | D65: 性別 | E65: 年齢 | F65: 居住地 | G65: 障害 種別 | H65: 障害 支援 区分 | I65: 自己 負担 | J65: 利用開始時期 （契約時期） | K65: 利用頻度 | M65: 2人 介助 | N65: 併用 サービス | O65: 居宅介護計画の作成等 ※新規・変更問わず直近のもの
K66: 身体介護 | L66: 家事援助 | O66: アセスメントの 実 施 日 | P66: 居宅介護計画の 作 成 日 | Q66: 利用者の 同 意 日
B67: 例 | C67: 浜松 太郎 | D67: 男 | E67: 44 | F67: 中区 | G67: 知的 | H67: 3 | I67: ○ | J67: 半年～1年以内 | K67: 週2回 | L67: 週4回 | M67: ○ | N67: 生活介護 | O67: 2023-04-01 | P67: 2023-04-10 | Q67: 2023-04-12 | AE67: 半年以内
B68: =B61+1 -> 51 | AE68: 半年～1年以内
B69: =B68+1 -> 52 | AE69: 1年～3年以内
B70: =B69+1 -> 53 | AE70: 3年以上
B71: 54
B72: 55
B73: 56
B74: 57
B75: 58
B76: 59
B77: 60
B78: 61
B79: 62
B80: 63
B81: 64
B82: 65
B83: 66
B84: 67
B85: 68
B86: 69
B87: 70
B88: 71
B89: 72
B90: 73
B91: 74
B92: 75
B95: ５－３ （行動援護） 居宅介護等計画の作成状況・支給決定内容等 | Q95: =" 4 / "&COUNTA(C$5,C$37,C$68,C$99,C$130,C$161) -> 4 / 1
B96: No. | C96: 利用者氏名 | D96: 性別 | E96: 年齢 | F96: 居住地 | G96: 障害 種別 | H96: 障害 支援 区分 | I96: 自己 負担 | J96: 利用開始時期 （契約時期） | K96: 利用頻度 | M96: 2人 介助 | N96: 併用 サービス | O96: 居宅介護計画の作成等 ※新規・変更問わず直近のもの
K97: 身体介護 | L97: 家事援助 | O97: アセスメントの 実 施 日 | P97: 居宅介護計画の 作 成 日 | Q97: 利用者の 同 意 日
B98: 例 | C98: 浜松 太郎 | D98: 男 | E98: 44 | F98: 中区 | G98: 知的 | H98: 3 | I98: ○ | J98: 半年～1年以内 | K98: 週2回 | L98: 週4回 | M98: ○ | N98: 生活介護 | O98: 2023-04-01 | P98: 2023-04-10 | Q98: 2023-04-12 | AE98: 半年以内
B99: =B92+1 -> 76 | AE99: 半年～1年以内
B100: =B99+1 -> 77 | AE100: 1年～3年以内
B101: =B100+1 -> 78 | AE101: 3年以上
B102: 79
B103: 80
B104: 81
B105: 82
B106: 83
B107: 84
B108: 85
B109: 86
B110: 87
B111: 88
B112: 89
B113: 90
B114: 91
B115: 92
B116: 93
B117: 94
B118: 95
B119: 96
B120: 97
B121: 98
B122: 99
B123: 100
B126: ５－３ （行動援護） 居宅介護等計画の作成状況・支給決定内容等 | Q126: =" 5 / "&COUNTA(C$5,C$37,C$68,C$99,C$130,C$161) -> 5 / 1
B127: No. | C127: 利用者氏名 | D127: 性別 | E127: 年齢 | F127: 居住地 | G127: 障害 種別 | H127: 障害 支援 区分 | I127: 自己 負担 | J127: 利用開始時期 （契約時期） | K127: 利用頻度 | M127: 2人 介助 | N127: 併用 サービス | O127: 居宅介護計画の作成等 ※新規・変更問わず直近のもの
K128: 身体介護 | L128: 家事援助 | O128: アセスメントの 実 施 日 | P128: 居宅介護計画の 作 成 日 | Q128: 利用者の 同 意 日
B129: 例 | C129: 浜松 太郎 | D129: 男 | E129: 44 | F129: 中区 | G129: 知的 | H129: 3 | I129: ○ | J129: 半年～1年以内 | K129: 週2回 | L129: 週4回 | M129: ○ | N129: 生活介護 | O129: 2023-04-01 | P129: 2023-04-10 | Q129: 2023-04-12 | AE129: 半年以内
B130: =B123+1 -> 101 | AE130: 半年～1年以内
B131: =B130+1 -> 102 | AE131: 1年～3年以内
B132: =B131+1 -> 103 | AE132: 3年以上
B133: 104
B134: 105
B135: 106
B136: 107
B137: 108
B138: 109
B139: 110
B140: 111
B141: 112
B142: 113
B143: 114
B144: 115
B145: 116
B146: 117
B147: 118
B148: 119
B149: 120
B150: 121
B151: 122
B152: 123
B153: 124
B154: 125
B157: ５－３ （行動援護） 居宅介護等計画の作成状況・支給決定内容等 | Q157: =" 6 / "&COUNTA(C$5,C$37,C$68,C$99,C$130,C$161) -> 6 / 1
B158: No. | C158: 利用者氏名 | D158: 性別 | E158: 年齢 | F158: 居住地 | G158: 障害 種別 | H158: 障害 支援 区分 | I158: 自己 負担 | J158: 利用開始時期 （契約時期） | K158: 利用頻度 | M158: 2人 介助 | N158: 併用 サービス | O158: 居宅介護計画の作成等 ※新規・変更問わず直近のもの
K159: 身体介護 | L159: 家事援助 | O159: アセスメントの 実 施 日 | P159: 居宅介護計画の 作 成 日 | Q159: 利用者の 同 意 日
B160: 例 | C160: 浜松 太郎 | D160: 男 | E160: 44 | F160: 中区 | G160: 知的 | H160: 3 | I160: ○ | J160: 半年～1年以内 | K160: 週2回 | L160: 週4回 | M160: ○ | N160: 生活介護 | O160: 2023-04-01 | P160: 2023-04-10 | Q160: 2023-04-12 | AE160: 半年以内
B161: =B154+1 -> 126 | AE161: 半年～1年以内
B162: =B161+1 -> 127 | AE162: 1年～3年以内
B163: =B162+1 -> 128 | AE163: 3年以上
B164: 129
B165: 130
B166: 131
B167: 132
B168: 133
B169: 134
B170: 135
B171: 136
B172: 137
B173: 138
B174: 139
B175: 140
B176: 141
B177: 142
B178: 143
B179: 144
B180: 145
B181: 146
B182: 147
B183: 148
B184: 149
B185: 150

Sheet P5-4
B2: ５－４ （同行援護） 居宅介護等計画の作成状況・支給決定内容等 | Q2: =" 1 / "&COUNTA(C$5,C$37,C$68,C$99,C$130,C$161) -> 1 / 1
B3: No. | C3: 利用者氏名 | D3: 性別 | E3: 年齢 | F3: 居住地 | G3: 障害 種別 | H3: 障害 支援 区分 | I3: 自己 負担 | J3: 利用開始時期 （契約時期） | K3: 利用頻度 | M3: 2人 介助 | N3: 併用 サービス | O3: 居宅介護計画の作成等 ※新規・変更問わず直近のもの
K4: 身体介護 | L4: 家事援助 | O4: アセスメントの 実 施 日 | P4: 居宅介護計画の 作 成 日 | Q4: 利用者の 同 意 日
B5: 例 | C5: 浜松 太郎 | D5: 男 | E5: 44 | F5: 中区 | G5: 知的 | H5: 3 | I5: ○ | J5: 半年～1年以内 | K5: 週2回 | L5: 週4回 | M5: ○ | N5: 生活介護 | O5: 2023-04-01 | P5: 2023-04-10 | Q5: 2023-04-12 | AE5: 半年以内
B6: 1 | AE6: 半年～1年以内
B7: =B6+1 -> 2 | AE7: 1年～3年以内
B8: =B7+1 -> 3 | AE8: 3年以上
B9: 4
B10: 5
B11: 6
B12: 7
B13: 8
B14: 9
B15: 10
B16: 11
B17: 12
B18: 13
B19: 14
B20: 15
B21: 16
B22: 17
B23: 18
B24: 19
B25: 20
B26: 21
B27: 22
B28: 23
B29: 24
B30: 25
B33: ５－４ （同行援護） 居宅介護等計画の作成状況・支給決定内容等 | Q33: =" 2 / "&COUNTA(C$5,C$37,C$68,C$99,C$130,C$161) -> 2 / 1
B34: No. | C34: 利用者氏名 | D34: 性別 | E34: 年齢 | F34: 居住地 | G34: 障害 種別 | H34: 障害 支援 区分 | I34: 自己 負担 | J34: 利用開始時期 （契約時期） | K34: 利用頻度 | M34: 2人 介助 | N34: 併用 サービス | O34: 居宅介護計画の作成等 ※新規・変更問わず直近のもの
K35: 身体介護 | L35: 家事援助 | O35: アセスメントの 実 施 日 | P35: 居宅介護計画の 作 成 日 | Q35: 利用者の 同 意 日
B36: 例 | C36: 浜松 太郎 | D36: 男 | E36: 44 | F36: 中区 | G36: 知的 | H36: 3 | I36: ○ | J36: 半年～1年以内 | K36: 週2回 | L36: 週4回 | M36: ○ | N36: 生活介護 | O36: 2023-04-01 | P36: 2023-04-10 | Q36: 2023-04-12 | AE36: 半年以内
B37: =B30+1 -> 26 | AE37: 半年～1年以内
B38: =B37+1 -> 27 | AE38: 1年～3年以内
B39: =B38+1 -> 28 | AE39: 3年以上
B40: 29
B41: 30
B42: 31
B43: 32
B44: 33
B45: 34
B46: 35
B47: 36
B48: 37
B49: 38
B50: 39
B51: 40
B52: 41
B53: 42
B54: 43
B55: 44
B56: 45
B57: 46
B58: 47
B59: 48
B60: 49
B61: 50
B64: ５－４ （同行援護） 居宅介護等計画の作成状況・支給決定内容等 | Q64: =" 3 / "&COUNTA(C$5,C$37,C$68,C$99,C$130,C$161) -> 3 / 1
B65: No. | C65: 利用者氏名 | D65: 性別 | E65: 年齢 | F65: 居住地 | G65: 障害 種別 | H65: 障害 支援 区分 | I65: 自己 負担 | J65: 利用開始時期 （契約時期） | K65: 利用頻度 | M65: 2人 介助 | N65: 併用 サービス | O65: 居宅介護計画の作成等 ※新規・変更問わず直近のもの
K66: 身体介護 | L66: 家事援助 | O66: アセスメントの 実 施 日 | P66: 居宅介護計画の 作 成 日 | Q66: 利用者の 同 意 日
B67: 例 | C67: 浜松 太郎 | D67: 男 | E67: 44 | F67: 中区 | G67: 知的 | H67: 3 | I67: ○ | J67: 半年～1年以内 | K67: 週2回 | L67: 週4回 | M67: ○ | N67: 生活介護 | O67: 2023-04-01 | P67: 2023-04-10 | Q67: 2023-04-12 | AE67: 半年以内
B68: =B61+1 -> 51 | AE68: 半年～1年以内
B69: =B68+1 -> 52 | AE69: 1年～3年以内
B70: =B69+1 -> 53 | AE70: 3年以上
B71: 54
B72: 55
B73: 56
B74: 57
B75: 58
B76: 59
B77: 60
B78: 61
B79: 62
B80: 63
B81: 64
B82: 65
B83: 66
B84: 67
B85: 68
B86: 69
B87: 70
B88: 71
B89: 72
B90: 73
B91: 74
B92: 75
B95: ５－４ （同行援護） 居宅介護等計画の作成状況・支給決定内容等 | Q95: =" 4 / "&COUNTA(C$5,C$37,C$68,C$99,C$130,C$161) -> 4 / 1
B96: No. | C96: 利用者氏名 | D96: 性別 | E96: 年齢 | F96: 居住地 | G96: 障害 種別 | H96: 障害 支援 区分 | I96: 自己 負担 | J96: 利用開始時期 （契約時期） | K96: 利用頻度 | M96: 2人 介助 | N96: 併用 サービス | O96: 居宅介護計画の作成等 ※新規・変更問わず直近のもの
K97: 身体介護 | L97: 家事援助 | O97: アセスメントの 実 施 日 | P97: 居宅介護計画の 作 成 日 | Q97: 利用者の 同 意 日
B98: 例 | C98: 浜松 太郎 | D98: 男 | E98: 44 | F98: 中区 | G98: 知的 | H98: 3 | I98: ○ | J98: 半年～1年以内 | K98: 週2回 | L98: 週4回 | M98: ○ | N98: 生活介護 | O98: 2023-04-01 | P98: 2023-04-10 | Q98: 2023-04-12 | AE98: 半年以内
B99: =B92+1 -> 76 | AE99: 半年～1年以内
B100: =B99+1 -> 77 | AE100: 1年～3年以内
B101: =B100+1 -> 78 | AE101: 3年以上
B102: 79
B103: 80
B104: 81
B105: 82
B106: 83
B107: 84
B108: 85
B109: 86
B110: 87
B111: 88
B112: 89
B113: 90
B114: 91
B115: 92
B116: 93
B117: 94
B118: 95
B119: 96
B120: 97
B121: 98
B122: 99
B123: 100
B126: ５－４ （同行援護） 居宅介護等計画の作成状況・支給決定内容等 | Q126: =" 5 / "&COUNTA(C$5,C$37,C$68,C$99,C$130,C$161) -> 5 / 1
B127: No. | C127: 利用者氏名 | D127: 性別 | E127: 年齢 | F127: 居住地 | G127: 障害 種別 | H127: 障害 支援 区分 | I127: 自己 負担 | J127: 利用開始時期 （契約時期） | K127: 利用頻度 | M127: 2人 介助 | N127: 併用 サービス | O127: 居宅介護計画の作成等 ※新規・変更問わず直近のもの
K128: 身体介護 | L128: 家事援助 | O128: アセスメントの 実 施 日 | P128: 居宅介護計画の 作 成 日 | Q128: 利用者の 同 意 日
B129: 例 | C129: 浜松 太郎 | D129: 男 | E129: 44 | F129: 中区 | G129: 知的 | H129: 3 | I129: ○ | J129: 半年～1年以内 | K129: 週2回 | L129: 週4回 | M129: ○ | N129: 生活介護 | O129: 2023-04-01 | P129: 2023-04-10 | Q129: 2023-04-12 | AE129: 半年以内
B130: =B123+1 -> 101 | AE130: 半年～1年以内
B131: =B130+1 -> 102 | AE131: 1年～3年以内
B132: =B131+1 -> 103 | AE132: 3年以上
B133: 104
B134: 105
B135: 106
B136: 107
B137: 108
B138: 109
B139: 110
B140: 111
B141: 112
B142: 113
B143: 114
B144: 115
B145: 116
B146: 117
B147: 118
B148: 119
B149: 120
B150: 121
B151: 122
B152: 123
B153: 124
B154: 125
B157: ５－４ （同行援護） 居宅介護等計画の作成状況・支給決定内容等 | Q157: =" 6 / "&COUNTA(C$5,C$37,C$68,C$99,C$130,C$161) -> 6 / 1
B158: No. | C158: 利用者氏名 | D158: 性別 | E158: 年齢 | F158: 居住地 | G158: 障害 種別 | H158: 障害 支援 区分 | I158: 自己 負担 | J158: 利用開始時期 （契約時期） | K158: 利用頻度 | M158: 2人 介助 | N158: 併用 サービス | O158: 居宅介護計画の作成等 ※新規・変更問わず直近のもの
K159: 身体介護 | L159: 家事援助 | O159: アセスメントの 実 施 日 | P159: 居宅介護計画の 作 成 日 | Q159: 利用者の 同 意 日
B160: 例 | C160: 浜松 太郎 | D160: 男 | E160: 44 | F160: 中区 | G160: 知的 | H160: 3 | I160: ○ | J160: 半年～1年以内 | K160: 週2回 | L160: 週4回 | M160: ○ | N160: 生活介護 | O160: 2023-04-01 | P160: 2023-04-10 | Q160: 2023-04-12 | AE160: 半年以内
B161: =B154+1 -> 126 | AE161: 半年～1年以内
B162: =B161+1 -> 127 | AE162: 1年～3年以内
B163: =B162+1 -> 128 | AE163: 3年以上
B164: 129
B165: 130
B166: 131
B167: 132
B168: 133
B169: 134
B170: 135
B171: 136
B172: 137
B173: 138
B174: 139
B175: 140
B176: 141
B177: 142
B178: 143
B179: 144
B180: 145
B181: 146
B182: 147
B183: 148
B184: 149
B185: 150
